Workbook

Sheet Données masses
B2: Masses | D2: 1 mg | E2: 2 mg | F2: 2 mg | G2: 5 mg | H2: 10 mg | I2: 20 mg | J2: 20 mg | K2: 50 mg | L2: 100 mg | M2: 200 mg | N2: 200 mg | O2: 500 mg | P2: 1 g | Q2: 2 g | R2: 2 g | S2: 5 g | T2: 10 g | U2: 20 g | V2: 20 g | W2: 50 g | X2: 100 g | Y2: 200 g | Z2: 200 g | AA2: 500 g | AB2: 1 kg | AC2: 2 kg | AD2: 2 kg | AF2: 40 mg | AG2: 25 g | AH2: 150 g | AI2: 220 g | AJ2: 250 g | AK2: 300 g | AL2: 400 g | AM2: 3 kg | AN2: 3,1 kg | AO2: 4 kg | AP2: 4,5 kg
B3: Masses g | D3: 0.001 | E3: 0.002 | F3: 0.002 | G3: 0.005 | H3: 0.01 | I3: 0.02 | J3: 0.02 | K3: 0.05 | L3: 0.1 | M3: 0.2 | N3: 0.2 | O3: 0.5 | P3: 1 | Q3: 2 | R3: 2 | S3: 5 | T3: 10 | U3: 20 | V3: 20 | W3: 50 | X3: 100 | Y3: 200 | Z3: 200 | AA3: 500 | AB3: 1000 | AC3: 2000 | AD3: 2000 | AF3: 0.04 | AG3: 25 | AH3: 150 | AI3: 220 | AJ3: 250 | AK3: 300 | AL3: 400 | AM3: 3000 | AN3: 3100 | AO3: 4000 | AP3: 4500
B4: Identification zwiebel | D4: aucune | E4: aucune | F4: < | G4: aucune | H4: aucune | I4: aucune | J4: < | K4: aucune | L4: aucune | M4: aucune | N4: < | O4: aucune | P4: ZH98L | Q4: ZH51L | R4: ZH52L | S4: ZH73G | T4: ZH70J | U4: ZH87L | V4: ZH88L | W4: ZH44J | X4: ZH54K | Y4: ZH89M | Z4: ZH90M | AA4: ZH40F | AB4: ZH37H | AC4: ZH26H | AD4: ZH59C | AF4: néant | AG4: néant | AH4: néant | AI4: néant | AJ4: néant | AK4: néant | AL4: néant | AM4: néant | AN4: néant | AO4: néant | AP4: néant
B5: Identification kalilab | D5: A12-MER-0001 | E5: a12-MER-0001 | F5: A12-MER-0001 | G5: A12-MER-0001 | H5: A12-MER-0001 | I5: A12-MER-0001 | J5: A12-MER-0001 | K5: A12-MER-0001 | L5: A12-MER-0001 | M5: A12-MER-0001 | N5: A12-MER-0001 | O5: A12-MER-0001 | P5: A12-MER-0002 | Q5: A12-MER-0002 | R5: A12-MER-0002 | S5: A12-MER-0002 | T5: A12-MER-0002 | U5: A12-MER-0002 | V5: A12-MER-0002 | W5: A12-MER-0002 | X5: A12-MER-0002 | Y5: A12-MER-0002 | Z5: A12-MER-0002 | AA5: A12-MER-0002 | AB5: A12-MER-0002 | AC5: A12-MER-0002 | AD5: A12-MER-0002 | AF5: association | AG5: association | AH5: association | AI5: association | AJ5: association | AK5: association | AL5: association | AM5: association | AN5: association | AO5: association | AP5: association
B6: Incertitude µg (k = 2 ) | C6: Certificat d'étalonnage :Z23 46410 et Z23 46411 du 21/11/2023 | D6: 2 | E6: 2 | F6: 2 | G6: 2 | H6: 2.6 | I6: 3 | J6: 3 | K6: 4 | L6: 5 | M6: 6 | N6: 6 | O6: 8 | P6: 10 | Q6: 13 | R6: 13 | S6: 16 | T6: 20 | U6: 26 | V6: 26 | W6: 30 | X6: 50 | Y6: 100 | Z6: 100 | AA6: 260 | AB6: 500 | AC6: 1000 | AD6: 1000 | AF6: =I6+J6 -> 6 | AG6: =IF(AND(U9="oui",OR(V9="non",V9="doublon")),U6+S6,IF(AND(V9="oui",OR(U9="non",U9="doublon")),V6+S6,)) -> 42 | AH6: =W6+X6 -> 80 | AI6: =IF(AND(U9="oui",OR(V9="non",V9="doublon"),Y9="oui",OR(Z9="non",Z9="doublon")),U6+Y6,IF(AND(U9="oui",OR(V9="non",V9="doublon"),Z9="oui",OR(Y9="non",Y9="doublon")),U6+Z6,IF(AND(V9="oui",OR(U9="non",U9="doublon"),Y9="oui",OR(Z9="non",Z9="doublon")),V6+Y6,IF(AND(V9="oui",OR(U9="non",U9="doublon"),Z9="oui",OR(Y9="non",Y9="doublon")),V6+Z6,"/!\ ERREUR /!\")))) -> 126 | AJ6: =IF(AND(Y9="oui",OR(Z9="non",Z9="doublon")),Y6+W6,IF(AND(Z9="oui",OR(Y9="non",Y9="doublon")),Z6+W6,)) -> 130 | AK6: =IF(AND(Y9="oui",OR(Z9="non",Z9="doublon")),Y6+X6,IF(AND(Z9="oui",OR(Y9="non",Y9="doublon")),Z6+X6,)) -> 150 | AL6: =Y6+Z6 -> 200 | AM6: =IF(AND(AC9="oui",OR(AD9="non",AD9="doublon")),AC6+AB6,IF(AND(AD9="oui",OR(AC9="non",AC9="doublon")),AD6+AB6,)) -> 1500 | AN6: =IF(AND(AC9="oui",OR(AD9="non",AD9="doublon")),AC6+AB6+X6,IF(AND(AD9="oui",OR(AC9="non",AC9="doublon")),AD6+AB6+X6,)) -> 1550 | AO6: =AC6+AD6 -> 2000 | AP6: =AC6+AD6+AA6 -> 2260
B7: Dérive µg | D7: =IF(ISBLANK(INDIRECT("D15")),INDIRECT("D6"),"calcul dérive") -> 2 | E7: =IF(ISBLANK(INDIRECT("E15")),INDIRECT("E6"),"calcul dérive") -> 2 | F7: =IF(ISBLANK(INDIRECT("F15")),INDIRECT("F6"),"calcul dérive") -> 2 | G7: =IF(ISBLANK(INDIRECT("G15")),INDIRECT("G6"),"calcul dérive") -> 2 | H7: =IF(ISBLANK(INDIRECT("H15")),INDIRECT("H6"),"calcul dérive") -> 2.6 | I7: =IF(ISBLANK(INDIRECT("I15")),INDIRECT("I6"),"calcul dérive") -> 3 | J7: =IF(ISBLANK(INDIRECT("J15")),INDIRECT("J6"),"calcul dérive") -> 3 | K7: =IF(ISBLANK(INDIRECT("K15")),INDIRECT("K6"),"calcul dérive") -> 4 | L7: =IF(ISBLANK(INDIRECT("L15")),INDIRECT("L6"),"calcul dérive") -> 5 | M7: =IF(ISBLANK(INDIRECT("M15")),INDIRECT("M6"),"calcul dérive") -> 6 | N7: =IF(ISBLANK(INDIRECT("N15")),INDIRECT("N6"),"calcul dérive") -> 6 | O7: =IF(ISBLANK(INDIRECT("O15")),INDIRECT("O6"),"calcul dérive") -> 8 | P7: =IF(ISBLANK(INDIRECT("P15")),INDIRECT("P6"),"calcul dérive") -> 10 | Q7: =IF(ISBLANK(INDIRECT("Q15")),INDIRECT("Q6"),"calcul dérive") -> 13 | R7: =IF(ISBLANK(INDIRECT("R15")),INDIRECT("R6"),"calcul dérive") -> 13 | S7: =IF(ISBLANK(INDIRECT("S15")),INDIRECT("S6"),"calcul dérive") -> 16 | T7: =IF(ISBLANK(INDIRECT("T15")),INDIRECT("T6"),"calcul dérive") -> 20 | U7: =IF(ISBLANK(INDIRECT("U15")),INDIRECT("U6"),"calcul dérive") -> 26 | V7: =IF(ISBLANK(INDIRECT("V15")),INDIRECT("V6"),"calcul dérive") -> 26 | W7: =IF(ISBLANK(INDIRECT("W15")),INDIRECT("W6"),"calcul dérive") -> 30 | X7: =IF(ISBLANK(INDIRECT("X15")),INDIRECT("X6"),"calcul dérive") -> 50 | Y7: =IF(ISBLANK(INDIRECT("Y15")),INDIRECT("Y6"),"calcul dérive") -> 100 | Z7: =IF(ISBLANK(INDIRECT("Z15")),INDIRECT("Z6"),"calcul dérive") -> 100 | AA7: =IF(ISBLANK(INDIRECT("AA15")),INDIRECT("AA6"),"calcul dérive") -> 260 | AB7: =IF(ISBLANK(INDIRECT("AB15")),INDIRECT("AB6"),"calcul dérive") -> 500 | AC7: =IF(ISBLANK(INDIRECT("AC15")),INDIRECT("AC6"),"calcul dérive") -> 1000 | AD7: =IF(ISBLANK(INDIRECT("AD15")),INDIRECT("AD6"),"calcul dérive") -> 1000 | AF7: =I7+J7 -> 6 | AG7: =IF(AND(U9="oui",OR(V9="non",V9="doublon")),U7+S7,IF(AND(V9="oui",OR(U9="non",U9="doublon")),V7+S7,)) -> 42 | AH7: =W7+X7 -> 80 | AI7: =IF(AND(U9="oui",OR(V9="non",V9="doublon"),Y9="oui",OR(Z9="non",Z9="doublon")),U7+Y7,IF(AND(U9="oui",OR(V9="non",V9="doublon"),Z9="oui",OR(Y9="non",Y9="doublon")),U7+Z7,IF(AND(V9="oui",OR(U9="non",U9="doublon"),Y9="oui",OR(Z9="non",Z9="doublon")),V7+Y7,IF(AND(V9="oui",OR(U9="non",U9="doublon"),Z9="oui",OR(Y9="non",Y9="doublon")),V7+Z7,"/!\ ERREUR /!\")))) -> 126 | AJ7: =IF(AND(Y9="oui",OR(Z9="non",Z9="doublon")),Y7+W7,IF(AND(Z9="oui",OR(Y9="non",Y9="doublon")),Z7+W7,)) -> 130 | AK7: =IF(AND(Y9="oui",OR(Z9="non",Z9="doublon")),Y7+X7,IF(AND(Z9="oui",OR(Y9="non",Y9="doublon")),Z7+X7,)) -> 150 | AL7: =Y7+Z7 -> 200 | AM7: =IF(AND(AC9="oui",OR(AD9="non",AD9="doublon")),AC7+AB7,IF(AND(AD9="oui",OR(AC9="non",AC9="doublon")),AD7+AB7,)) -> 1500 | AN7: =IF(AND(AC9="oui",OR(AD9="non",AD9="doublon")),AC7+AB7+X7,IF(AND(AD9="oui",OR(AC9="non",AC9="doublon")),AD7+AB7+X7,)) -> 1550 | AO7: =AC7+AD7 -> 2000 | AP7: =AC7+AD7+AA7 -> 2260
B8: Valeur vrai g | D8: 0.0010023 | E8: 24 | F8: 18 | G8: 0.005003 | H8: 0.0100016 | I8: 0.0199999 | J8: 0.0199992 | K8: 0.0500052 | L8: 0.100003 | M8: 0.2000041 | N8: 0.2000025 | O8: 0.500009 | P8: 1 | Q8: 2.000009 | R8: 2.000008 | S8: 4.999996 | T8: 10.000003 | U8: 20.000018 | V8: 20.000022 | W8: 50.000019 | X8: 100.000015 | Y8: 200.000074 | Z8: 200.000043 | AA8: 499.99994 | AB8: 1000.00069 | AC8: 2000.0002 | AD8: 1999.9986 | AF8: =I8+J8 -> 0.0399991 | AG8: =IF(AND(U9="oui",OR(V9="non",V9="doublon")),U8+S8,IF(AND(V9="oui",OR(U9="non",U9="doublon")),V8+S8,"/!\ ERREUR /!\ ")) -> 25.000014 | AH8: =W8+X8 -> 150.000034 | AI8: =IF(AND(U9="oui",OR(V9="non",V9="doublon"),Y9="oui",OR(Z9="non",Z9="doublon")),U8+Y8,IF(AND(U9="oui",OR(V9="non",V9="doublon"),Z9="oui",OR(Y9="non",Y9="doublon")),U8+Z8,IF(AND(V9="oui",OR(U9="non",U9="doublon"),Y9="oui",OR(Z9="non",Z9="doublon")),V8+Y8,IF(AND(V9="oui",OR(U9="non",U9="doublon"),Z9="oui",OR(Y9="non",Y9="doublon")),V8+Z8,"/!\ ERREUR /!\")))) -> 220.000061 | AJ8: =IF(AND(Y9="oui",OR(Z9="non",Z9="doublon")),Y8+W8,IF(AND(Z9="oui",OR(Y9="non",Y9="doublon")),Z8+W8,)) -> 250.000062 | AK8: =IF(AND(Y9="oui",OR(Z9="non",Z9="doublon")),Y8+X8,IF(AND(Z9="oui",OR(Y9="non",Y9="doublon")),Z8+X8,)) -> 300.000058 | AL8: =Y8+Z8 -> 400.000117 | AM8: =IF(AND(AC9="oui",OR(AD9="non",AD9="doublon")),AC8+AB8,IF(AND(AD9="oui",OR(AC9="non",AC9="doublon")),AD8+AB8,)) -> 2999.99929 | AN8: =IF(AND(AC9="oui",OR(AD9="non",AD9="doublon")),AC8+AB8+X8,IF(AND(AD9="oui",OR(AC9="non",AC9="doublon")),AD8+AB8+X8,)) -> 3099.999305 | AO8: =AC8+AD8 -> 3999.9988 | AP8: 4499.99874
B9: Utilisation (oui/non/doublon) | D9: oui | E9: non | F9: oui | G9: oui | H9: oui | I9: oui | J9: non | K9: oui | L9: oui | M9: oui | N9: non | O9: oui | P9: oui | Q9: doublon | R9: oui | S9: oui | T9: oui | U9: oui | V9: non | W9: oui | X9: oui | Y9: non | Z9: oui | AA9: oui | AC9: non | AD9: oui | AF9: association | AG9: association | AH9: association | AI9: association | AJ9: association | AK9: association | AL9: association | AM9: association | AN9: association | AO9: association | AP9: association
B10: incertitude g | D10: =(INDIRECT("D6")/2)/1000000 -> 1e-06 | E10: =(INDIRECT("E6")/2)/1000000 -> 1e-06 | F10: =(INDIRECT("F6")/2)/1000000 -> 1e-06 | G10: =(INDIRECT("G6")/2)/1000000 -> 1e-06 | H10: =(INDIRECT("H6")/2)/1000000 -> 1.3e-06 | I10: =(INDIRECT("I6")/2)/1000000 -> 1.5e-06 | J10: =(INDIRECT("J6")/2)/1000000 -> 1.5e-06 | K10: =(INDIRECT("K6")/2)/1000000 -> 2e-06 | L10: =(INDIRECT("L6")/2)/1000000 -> 2.5e-06 | M10: =(INDIRECT("M6")/2)/1000000 -> 3e-06 | N10: =(INDIRECT("N6")/2)/1000000 -> 3e-06 | O10: =(INDIRECT("O6")/2)/1000000 -> 4e-06 | P10: =(INDIRECT("P6")/2)/1000000 -> 5e-06 | Q10: =(INDIRECT("Q6")/2)/1000000 -> 6.5e-06 | R10: =(INDIRECT("R6")/2)/1000000 -> 6.5e-06 | S10: =(INDIRECT("S6")/2)/1000000 -> 8e-06 | T10: =(INDIRECT("T6")/2)/1000000 -> 1e-05 | U10: =(INDIRECT("U6")/2)/1000000 -> 1.3e-05 | V10: =(INDIRECT("V6")/2)/1000000 -> 1.3e-05 | W10: =(INDIRECT("W6")/2)/1000000 -> 1.5e-05 | X10: =(INDIRECT("X6")/2)/1000000 -> 2.5e-05 | Y10: =(INDIRECT("Y6")/2)/1000000 -> 5e-05 | Z10: =(INDIRECT("Z6")/2)/1000000 -> 5e-05 | AA10: =(INDIRECT("AA6")/2)/1000000 -> 0.00013 | AB10: =(INDIRECT("AB6")/2)/1000000 -> 0.00025 | AC10: =(INDIRECT("AC6")/2)/1000000 -> 0.0005 | AD10: =(INDIRECT("AD6")/2)/1000000 -> 0.0005 | AF10: =(INDIRECT("Af6")/2)/1000000 -> 3e-06 | AG10: =(INDIRECT("Ag6")/2)/1000000 -> 2.1e-05 | AH10: =(INDIRECT("Ah6")/2)/1000000 -> 4e-05 | AI10: =(INDIRECT("Ai6")/2)/1000000 -> 6.3e-05 | AJ10: =(INDIRECT("Aj6")/2)/1000000 -> 6.5e-05 | AK10: =(INDIRECT("Ak6")/2)/1000000 -> 7.5e-05 | AL10: =(INDIRECT("Al6")/2)/1000000 -> 0.0001 | AM10: =(INDIRECT("Am6")/2)/1000000 -> 0.00075 | AN10: =(INDIRECT("An6")/2)/1000000 -> 0.000775 | AO10: =(INDIRECT("Ao6")/2)/1000000 -> 0.001 | AP10: =(INDIRECT("Ap6")/2)/1000000 -> 0.00113 | AR10: oui
B11: Dérive g | D11: =(D7/2)/(1*10^6) -> 1e-06 | E11: 1e-06 | F11: 1e-06 | G11: 1e-06 | H11: 1.3e-06 | I11: 1.5e-06 | J11: 1.5e-06 | K11: 2e-06 | L11: 2.5e-06 | M11: 3e-06 | N11: 3e-06 | O11: 4e-06 | P11: 5e-06 | Q11: 6.5e-06 | R11: 6.5e-06 | S11: 8e-06 | T11: 1e-05 | U11: 1.3e-05 | V11: 1.3e-05 | W11: 1.5e-05 | X11: 2.5e-05 | Y11: 5e-05 | Z11: 5e-05 | AA11: 0.00013 | AB11: 0.00025 | AC11: 0.0005 | AD11: =(AD7/2)/(1*10^6) -> 0.0005 | AF11: =(AF7/2)/(1*10^6) -> 3e-06 | AG11: 2.1e-05 | AH11: 4e-05 | AI11: 6.3e-05 | AJ11: 6.5e-05 | AK11: 7.5e-05 | AL11: 0.0001 | AM11: 0.00075 | AN11: 0.000775 | AO11: 0.001 | AP11: 0.00113 | AR11: non
B12: Incertitude conposée de la masse (g) | D12: =SQRT(D10*D10+D11*D11) -> 1.414213562e-06 | E12: =SQRT(E10*E10+E11*E11) -> 1.414213562e-06 | F12: 1.414213562e-06 | G12: 1.414213562e-06 | H12: 1.838477631e-06 | I12: 2.121320344e-06 | J12: 2.121320344e-06 | K12: 2.828427125e-06 | L12: 3.535533906e-06 | M12: 4.242640687e-06 | N12: 4.242640687e-06 | O12: 5.656854249e-06 | P12: 7.071067812e-06 | Q12: 9.192388155e-06 | R12: 9.192388155e-06 | S12: 1.13137085e-05 | T12: 1.414213562e-05 | U12: 1.838477631e-05 | V12: 1.838477631e-05 | W12: 2.121320344e-05 | X12: 3.535533906e-05 | Y12: 7.071067812e-05 | Z12: 7.071067812e-05 | AA12: 0.0001838477631 | AB12: 0.0003535533906 | AC12: 0.0007071067812 | AD12: 0.0007071067812 | AF12: =SQRT(AF10*AF10+AF11*AF11) -> 4.242640687e-06 | AG12: =SQRT(AG10*AG10+AG11*AG11) -> 2.969848481e-05 | AH12: =SQRT(AH10*AH10+AH11*AH11) -> 5.656854249e-05 | AI12: 8.909545443e-05 | AJ12: 9.192388155e-05 | AK12: 0.0001060660172 | AL12: 0.0001414213562 | AM12: 0.001060660172 | AN12: 0.001096015511 | AO12: 0.001414213562 | AP12: 0.001598061325 | AR12: doublon

Sheet calcul % u
B4: ORIGINE | C4: Composante | E4: Incertitude-type
C5: Charges appliquées (g) | E5: 1 | F5: % | G5: 25 | H5: % | I5: 100 | J5: % | K5: 250 | L5: % | M5: 500 | N5: % | O5: 1000 | P5: % | Q5: ='calcul '!M83 -> /
B6: Détermination de l'erreur d'indication | C6: Répétabilité des pesées de l'étalon de masse (g) | E6: ='calcul '!G84 -> 8.164965809e-05 | F6: =E6*E6/SUMSQ($E$6:$E$10)*100 -> 66.58099357 | G6: ='calcul '!H84 -> 8.164965809e-05 | H6: =G6*G6/SUMSQ(G6:G10)*100 -> 1.760176017 | I6: ='calcul '!I84 -> 8.164965809e-05 | J6: =I6*I6/SUMSQ(I6:I10)*100 -> 1.760176017 | K6: ='calcul '!J84 -> 8.164965809e-05 | L6: =K6*K6/SUMSQ($K$6:$K$10)*100 -> 0.7935799382 | M6: ='calcul '!K84 -> 8.164965809e-05 | N6: =M6*M6/SUMSQ($M$6:$M$10)*100 -> 0.3710634344 | O6: ='calcul '!L84 -> / | P6: =O6*O6/SUMSQ($O$6:$O$10)*100 ->  | Q6: ='calcul '!M84 -> /
C7: Résoution à vide (g) | E7: ='calcul '!G85 -> 4.082482905e-05 | F7: =E7*E7/SUMSQ($E$6:$E$10)*100 -> 16.64524839 | G7: ='calcul '!H85 -> 4.082482905e-05 | H7: =G7*G7/SUMSQ(G6:G10)*100 -> 0.4400440044 | I7: ='calcul '!I85 -> 4.082482905e-05 | J7: =I7*I7/SUMSQ(I6:I10)*100 -> 0.4400440044 | K7: ='calcul '!J85 -> 4.082482905e-05 | L7: =K7*K7/SUMSQ($K$6:$K$10)*100 -> 0.1983949846 | M7: ='calcul '!K85 -> 4.082482905e-05 | N7: =M7*M7/SUMSQ($M$6:$M$10)*100 -> 0.0927658586 | O7: ='calcul '!L85 -> / | P7: =O7*O7/SUMSQ($O$6:$O$10)*100 ->  | Q7: ='calcul '!M85 -> /
C8: Résolution en charge (charge = étalon de masse) (g) | E8: ='calcul '!G86 -> 4.082482905e-05 | F8: 16.64524839 | G8: ='calcul '!H86 -> 4.082482905e-05 | H8: =G8*G8/SUMSQ(G6:G10)*100 -> 0.4400440044 | I8: ='calcul '!I86 -> 4.082482905e-05 | J8: =I8*I8/SUMSQ(I6:I10)*100 -> 0.4400440044 | K8: ='calcul '!J86 -> 4.082482905e-05 | L8: 0.1983949846 | M8: ='calcul '!K86 -> 4.082482905e-05 | N8: =M8*M8/SUMSQ($M$6:$M$10)*100 -> 0.0927658586 | O8: ='calcul '!L86 -> / | Q8: ='calcul '!M86 -> /
C9: Etalons de masse étalonnées (g) | E9: ='calcul '!G87 -> 3.535533906e-06 | F9: 0.124839363 | G9: ='calcul '!I87 -> 3.535533906e-05 | H9: =G9*G9/SUMSQ(G6:G10)*100 -> 0.3300330033 | I9: ='calcul '!I87 -> 3.535533906e-05 | J9: =I9*I9/SUMSQ(I6:I10)*100 -> 0.3300330033 | K9: ='calcul '!J87 -> 5.656854249e-05 | L9: 0.3809183704 | M9: ='calcul '!K87 -> 8.909545443e-05 | N9: =M9*M9/SUMSQ($M$6:$M$10)*100 -> 0.4418252313 | O9: ='calcul '!L87 -> / | Q9: ='calcul '!M87 -> /
C10: Influence de la température (g) | E10: ='calcul '!G88 -> 6.062177826e-07 | F10: 0.003670277271 | G10: ='calcul '!I88 -> 0.0006062177826 | H10: =G10*G10/SUMSQ(G6:G10)*100 -> 97.02970297 | I10: ='calcul '!I88 -> 0.0006062177826 | J10: =I10*I10/SUMSQ(I6:I10)*100 -> 97.02970297 | K10: ='calcul '!J88 -> 0.000909326674 | L10: 98.42871172 | M10: ='calcul '!K88 -> 0.001333679122 | N10: 99.00157962 | O10: ='calcul '!L88 -> / | Q10: ='calcul '!M88 -> /
B11: Incertitude - type composée (g) | F11: =SUM(F6:F10) -> 100 | H11: =SUM(H6:H10) -> 100 | J11: =SUM(J6:J10) -> 100 | L11: =SUM(L6:L10) -> 100 | N11: =SUM(N6:N10) -> 100 | P11: =SUM(P6:P10) ->  | Q11: ='calcul '!M89 -> /
B12: Incertitude élargie (k=2) (g) | Q12: ='calcul '!M90 -> /
B14: Phase 2 : Détermination de l’incertitude de l’instrument de pesage.
B16: ORIGINE | C16: Composante | E16: Incertitude-type
C17: Charges appliquées (g) | E17: 1 | F17: % | G17: 25 | H17: % | I17: 100 | J17: % | K17: 250 | L17: % | M17: 500 | N17: % | O17: 1000 | P17: % | Q17: ='calcul '!M98 -> /
B18: Résultat de la pesé d'un corps | C18: Répétabilité des pesées de l'étalon de masse (g) | E18: ='calcul '!G99 -> 8.164965809e-05 | F18: =E18*E18/SUMSQ(($E$18:$E$24))*100 -> 5.725721534 | G18: ='calcul '!H99 -> 8.164965809e-05 | H18: =G18*G18/SUMSQ($G$18:$G$24)*100 -> 0.07000376602 | I18: ='calcul '!I99 -> 8.164965809e-05 | J18: =I18*I18/SUMSQ($I$18:$I$24)*100 -> 0.01771175818 | K18: ='calcul '!J99 -> 8.164965809e-05 | L18: =K18*K18/SUMSQ($K$18:$K$24)*100 -> 0.00789329266 | M18: ='calcul '!K99 -> 8.164965809e-05 | N18: =M18*M18/SUMSQ($M$18:$M$24)*100 -> 0.003671294269 | O18: ='calcul '!L99 -> / | P18: =O18*O18/SUMSQ($O$18:$O$24)*100 ->  | Q18: ='calcul '!M99 -> /
C19: Résoution à vide (g) | E19: ='calcul '!G100 -> 4.082482905e-05 | F19: 1.431430384 | G19: ='calcul '!H100 -> 4.082482905e-05 | H19: =G19*G19/SUMSQ($G$18:$G$24)*100 -> 0.01750094151 | I19: ='calcul '!I100 -> 4.082482905e-05 | J19: =I19*I19/SUMSQ($I$18:$I$24)*100 -> 0.004427939546 | K19: ='calcul '!J100 -> 4.082482905e-05 | L19: =K19*K19/SUMSQ($K$18:$K$24)*100 -> 0.001973323165 | M19: ='calcul '!K100 -> 4.082482905e-05 | N19: =M19*M19/SUMSQ($M$18:$M$24)*100 -> 0.0009178235673 | O19: ='calcul '!L100 -> / | P19: =O19*O19/SUMSQ($O$18:$O$24)*100 ->  | Q19: ='calcul '!M100 -> /
C20: Résolution en charge (charge = étalon de masse) (g) | E20: ='calcul '!G101 -> 4.082482905e-05 | F20: 1.431430384 | G20: ='calcul '!H101 -> 4.082482905e-05 | H20: 0.01750094151 | I20: ='calcul '!I101 -> 4.082482905e-05 | J20: 0.004427939546 | K20: ='calcul '!J101 -> 4.082482905e-05 | L20: 0.001973323165 | M20: ='calcul '!K101 -> 4.082482905e-05 | N20: 0.0009178235673 | O20: ='calcul '!L101 -> / | Q20: ='calcul '!M101 -> /
B21: Erreur d'indication | C21: Erreur d'indication non-corrigée (g) | E21: ='calcul '!G102 -> 0.0001111985499 | F21: 10.61988293 | G21: ='calcul '!H102 -> 0.0003493783765 | H21: 1.28175408 | I21: ='calcul '!I102 -> 0.0006317089915 | J21: 1.06019817 | K21: ='calcul '!J102 -> 0.0009167136958 | L21: 0.994985849 | M21: ='calcul '!K102 -> 0.001346725009 | N21: 0.9987764779 | O21: ='calcul '!L102 -> / | Q21: ='calcul '!M102 -> /
C22: Pérénité des erreurs (g) | E22: ='calcul '!G103 -> 0.0001111985499 | F22: 10.61988293 | G22: ='calcul '!H103 -> 0.0003493783765 | H22: 1.28175408 | I22: ='calcul '!I103 -> 0.0006317089915 | J22: 1.06019817 | K22: ='calcul '!J103 -> 0.0009167136958 | L22: 0.994985849 | M22: ='calcul '!K103 -> 0.001346725009 | N22: 0.9987764779 | O22: ='calcul '!L103 -> / | Q22: ='calcul '!M103 -> /
B23: Influence de la température (g) | E23: ='calcul '!G104 -> 6.062177826e-06 | F23: 0.03156303996 | G23: ='calcul '!H104 -> 0.003031088913 | H23: 96.47394006 | I23: ='calcul '!I104 -> 0.006062177826 | J23: 97.63606698 | K23: ='calcul '!J104 -> 0.00909326674 | L23: 97.90149553 | M23: ='calcul '!K104 -> 0.01333679122 | N23: 97.95196675 | O23: ='calcul '!L104 -> / | Q23: ='calcul '!M104 -> /
B24: Excentration de la charge (g) | E24: ='calcul '!G105 -> 0.0002857738033 | F24: 70.1400888 | G24: ='calcul '!H105 -> 0.0002857738033 | H24: 0.8575461339 | I24: ='calcul '!I105 -> 0.0002857738033 | J24: 0.2169690377 | K24: ='calcul '!J105 -> 0.0002857738033 | L24: 0.09669283509 | M24: ='calcul '!K105 -> 0.0002857738033 | N24: 0.0449733548 | O24: ='calcul '!L105 -> / | Q24: ='calcul '!M105 -> /
B25: Incertitude - type composée (g) | E25: ='calcul '!G106 -> 0.000341223756 | F25: =SUM(F18:F24) -> 100 | G25: ='calcul '!H106 -> 0.003085983987 | H25: =SUM(H18:H24) -> 100 | I25: ='calcul '!I106 -> 0.006135126663 | J25: =SUM(J18:J24) -> 100 | K25: ='calcul '!J106 -> 0.009190206454 | L25: =SUM(L18:L24) -> 100 | M25: ='calcul '!K106 -> 0.0134754964 | N25: =SUM(N18:N24) -> 100 | O25: ='calcul '!L106 -> / | P25: =SUM(P18:P24) ->  | Q25: ='calcul '!M106 -> /
B26: Incertitude élargie (k=2) (g) | E26: ='calcul '!G107 -> 0.000682447512 | G26: ='calcul '!H107 -> 0.006171967974 | I26: ='calcul '!I107 -> 0.01227025333 | K26: ='calcul '!J107 -> 0.01838041291 | M26: ='calcul '!K107 -> 0.0269509928 | O26: ='calcul '!L107 -> / | Q26: ='calcul '!M107 -> /

Sheet calcul
C5: Certificat d'étalonnage N°01-2023
Q6: =TEXT(Q5,"hhmm") -> 0000
Q7: =C19-DATE(YEAR(C19),1,0) -> 342
B8: DELIVRE A | Q8: =RIGHT(C17,2) -> 02
Q9: =RIGHT(C17,8) -> BAL-0002
B10: Les masses ou poids utilisés font l'objet d'un certificat d'étalonnage COFRAC émis par un prestataire externe. | Q10: =LEFT(Q9,3) -> BAL | R10: =MID(C17,2,1) -> 1 | S10: =RIGHT(C17,2) -> 02
Q11: LIAL
B12: Configuration d'étalonnage : | Q12: =IF(Q11="LIAL","I","E") -> I
B13: Chronologie des pesées : CROISSANT. | Q13: =TEXT(C19,"aa") -> 23
B14: Mode de lecture : DIRECT. | H14: Rajouter dans la macro de protection une option pour vérifier si D17 est vide -> message d'erreur, si rempli protège. | Q14: =IF(Q10="BAL",1,IF(Q10="AUT",2,"/")) -> 1
B15: Modalité de l'étalonnage : | Q15: =_xlfn.CONCAT("Certificat d'étalonnage N° ",Q12,"-",R10,Q14,S10,"-",Q6,"-",Q7,"-",Q13) -> Certificat d'étalonnage N° I-1102-0000-342-23
S16: =C5 -> Certificat d'étalonnage N°01-2023 | Z16: Appareil de pesage | AB16: =C17 -> A12-BAL-0002
B17: Appareil de pesage | C17: A12-BAL-0002 | S17: balance | U17: affichage | W17: : oui. | X17: étalonnage | Z17: Opérateur | AB17: =C18 -> 0
B18: Opérateur | S18: A6-BAL-0003 | U18: numérique | W18: : non. | X18: périodique. | Z18: Date d'intervention | AB18: =C19 -> 45268
B19: Date d'intervention | C19: 2023-12-08 | S19: A6-BAL-0006 | U19: analogique | X19: après maintenance. | Z19: Date d'émission | AB19: =C22 -> 0
B20: Visa | S20: A6-AUT-0013 | U20: / | X20: après ajustage.
S21: A9-AUT-0004
B22: Date d'émission | S22: A9-AUT-0005
B23: Visa | S23: A9-AUT-0006
S24: A9-AUT-0021
S25: A9-AUT-0029
B26: Donnée technique de l'appareil de pesage : | S26: A9-BAL-0004
S27: A12-BAL-0002
B28: Caractéristique de l'instrument | S28: A12-BAL-0003
B29: Affichage : | C29: numérique | D29: Nombres d'étendues de pesage : | G29: 1 | J29: Etendue 1 | K29: Etendue 2 | L29: C (°C-1) : | M29: 1.5e-05 | S29: /
H30: Portée (g) : | J30: 220 | K30: /
H31: Résolution d (g) : | J31: 0.0001 | K31: /
B33: Conditions ambiantes :
B35: Température (°C) | E35: Pression (hPa) | H35: Humidité (%)
B36: Température d'étalonnage | C36: début | D36: fin | E36: Pression lors de l'étalonnage | F36: min | G36: max | H36: Humidité lors de l'étalonnage | I36: min | J36: max
C37: 19.9 | D37: 20.6
C38: ΔT = | D38: =IF(OR(ISBLANK(C37:D37),C37:D37="/"),"/",ABS(C37-D37)) -> 0.7 | F38: 994 | G38: 1034 | I38: 20 | J38: 80
C39: x̅ = | D39: =IF(OR(ISBLANK(C37:D37),C37:D37="/"),"/",AVERAGE(C37:D37)) -> 20.25
B40: Température d'utilisation | C40: min | D40: max | E40: Pression lors de l'utilisation | F40: min | G40: max | H40: Humidité lors de l'utilisation | I40: min | J40: max
C41: 18 | D41: 25
C42: ΔT = | D42: =IF(OR(ISBLANK(C41:D41),C41:D41="/"),"/",ABS(C41-D41)) -> 7 | F42: 994 | G42: 1034 | I42: 20 | J42: 80
B44: Les essais réalisés lors de l'étalonnage de l'appareil de pesage sont détaillés dans le MO-------
B46: Essais :
B48: Répétabilité (g)
B49: Masse pesée : | C49: 100
B50: 1 | C50: 100.0002
B51: 2 | C51: 100.0001
B52: 3 | C52: 100.0003
B53: 4 | C53: 100.0003
B54: 5 | C54: 100.0002
B55: 6 | C55: 100.0002
B56: 7 | C56: 100.0001
B57: 8 | C57: 100.0003
B58: 9 | C58: 100.0001
B59: 10 | C59: 100.0002
B60: s = | C60: =IF(OR(ISBLANK(C49:C54)),"/",STDEV(C50:C59)) -> 8.164965809e-05 | D60: =IF(OR(ISBLANK(D49:D54)),"/",STDEV(D50:D59)) -> /
B62: Détermination de l'erreur d'indication (g)
B63: Indication à charge nulle (g) : | E63: 0
B64: Charge d'étalonnage appliquée (g) : | F64: 0.1 | G64: 50 | H64: 100 | I64: 150 | J64: 220 | K64: / | L64: /
B65: Valeur vraie de l'étalon (g) : | E65: xi | F65: =IF(OR(ISBLANK(F64),F64="/"),"/",IF(F64='Données masses'!$D$3,'Données masses'!$D$8,IF(AND(F64='Données masses'!$E$3,'Données masses'!$E$9="oui",OR('Données masses'!$F$9="non",'Données masses'!$F$9="doublon")),'Données masses'!$E$8,IF(AND(F64='Données masses'!$F$3,'Données masses'!$F$9="oui",OR('Données masses'!$E$9="non",'Données masses'!$E$9="doublon")),'Données masses'!$F$8,IF(F64='Données masses'!$G$3,'Données masses'!$G$8,IF(F64='Données masses'!$H$3,'Données masses'!$H$8,IF(AND(F64='Données masses'!$I$3,'Données masses'!$I$9="oui",OR('Données masses'!$J$9="non",'Données masses'!$J$9="doublon")),'Données masses'!$I$8,IF(AND(F64='Données masses'!$J$3,'Données masses'!$J$9="oui",OR('Données masses'!$I$9="non",'Données masses'!$I$9="doublon")),'Données masses'!$J$8,IF(F64='Données masses'!$K$3,'Données masses'!$K$8,IF(F64='Données masses'!$L$3,'Données masses'!$L$8,IF(AND(F64='Données masses'!$M$3,'Données masses'!$M$9="oui",OR('Données masses'!$N$9="non",'Données masses'!$N$9="doublon")),'Données masses'!$M$8,IF(AND(F64='Données masses'!$N$3,'Données masses'!$N$9="oui",OR('Données masses'!$M$9="non",'Données masses'!$M$9="doublon")),'Données masses'!$N$8,IF(F64='Données masses'!$O$3,'Données masses'!$O$8,IF(F64='Données masses'!$P$3,'Données masses'!$P$8,IF(AND(F64='Données masses'!$Q$3,'Données masses'!$Q$9="oui",OR('Données masses'!$R$9="non",'Données masses'!$R$9="doublon")),'Données masses'!$Q$8,IF(AND(F64='Données masses'!$R$3,'Données masses'!$R$9="oui",OR('Données masses'!$Q$9="non",'Données masses'!$Q$9="doublon")),'Données masses'!$R$8,IF(F64='Données masses'!$S$3,'Données masses'!$S$8,IF(F64='Données masses'!$T$3,'Données masses'!$T$8,IF(AND(F64='Données masses'!$U$3,'Données masses'!$U$9="oui",OR('Données masses'!$V$9="non",'Données masses'!$V$9="doublon")),'Données masses'!$U$8,IF(AND(F64='Données masses'!$V$3,'Données masses'!$V$9="oui",OR('Données masses'!$U$9="non",'Données masses'!$U$9="doublon")),'Données masses'!$V$8,IF(F64='Données masses'!$W$3,'Données masses'!$W$8,IF(F64='Données masses'!$X$3,'Données masses'!$X$8,IF(AND(F64='Données masses'!$Y$3,'Données masses'!$Y$9="oui",OR('Données masses'!$Z$9="non",'Données masses'!$Z$9="doublon")),'Données masses'!$Y$8,IF(AND(F64='Données masses'!$Z$3,'Données masses'!$Z$9="oui",OR('Données masses'!$Y$9="non",'Données masses'!$Y$9="doublon")),'Données masses'!$Z$8,IF(F64='Données masses'!$AA$3,'Données masses'!$AA$8,IF(F64='Données masses'!$AB$3,'Données masses'!$AB$8,IF(AND(F64='Données masses'!$AC$3,'Données masses'!$AC$9="oui",OR('Données masses'!$AD$9="non",'Données masses'!$AD$9="doublon")),'Données masses'!$AC$8,IF(AND(F64='Données masses'!$AD$3,'Données masses'!$AD$9="oui",OR('Données masses'!$AC$9="non",'Données masses'!$AC$9="doublon")),'Données masses'!$AD$8,IF(F64='Données masses'!$AF$3,'Données masses'!$AF$8,IF(F64='Données masses'!$AG$3,'Données masses'!$AG$8,IF(F64='Données masses'!$AH$3,'Données masses'!$AH$8,IF(F64='Données masses'!$AI$3,'Données masses'!$AI$8,IF(F64='Données masses'!$AJ$3,'Données masses'!$AJ$8,IF(F64='Données masses'!$AK$3,'Données masses'!$AK$8,IF(F64='Données masses'!$AL$3,'Données masses'!$AL$8,IF(F64='Données masses'!$AM$3,'Données masses'!$AM$8,IF(F64='Données masses'!$AN$3,'Données masses'!$AN$8,IF(F64='Données masses'!$AO$3,'Données masses'!$AO$8,IF(F64='Données masses'!$AP$3,'Données masses'!$AP$8,"Erreur"))))))))))))))))))))))))))))))))))))))) -> 0.100003 | G65: =IF(OR(ISBLANK(G64),G64="/"),"/",IF(G64='Données masses'!$D$3,'Données masses'!$D$8,IF(AND(G64='Données masses'!$E$3,'Données masses'!$E$9="oui",OR('Données masses'!$F$9="non",'Données masses'!$F$9="doublon")),'Données masses'!$E$8,IF(AND(G64='Données masses'!$F$3,'Données masses'!$F$9="oui",OR('Données masses'!$E$9="non",'Données masses'!$E$9="doublon")),'Données masses'!$F$8,IF(G64='Données masses'!$G$3,'Données masses'!$G$8,IF(G64='Données masses'!$H$3,'Données masses'!$H$8,IF(AND(G64='Données masses'!$I$3,'Données masses'!$I$9="oui",OR('Données masses'!$J$9="non",'Données masses'!$J$9="doublon")),'Données masses'!$I$8,IF(AND(G64='Données masses'!$J$3,'Données masses'!$J$9="oui",OR('Données masses'!$I$9="non",'Données masses'!$I$9="doublon")),'Données masses'!$J$8,IF(G64='Données masses'!$K$3,'Données masses'!$K$8,IF(G64='Données masses'!$L$3,'Données masses'!$L$8,IF(AND(G64='Données masses'!$M$3,'Données masses'!$M$9="oui",OR('Données masses'!$N$9="non",'Données masses'!$N$9="doublon")),'Données masses'!$M$8,IF(AND(G64='Données masses'!$N$3,'Données masses'!$N$9="oui",OR('Données masses'!$M$9="non",'Données masses'!$M$9="doublon")),'Données masses'!$N$8,IF(G64='Données masses'!$O$3,'Données masses'!$O$8,IF(G64='Données masses'!$P$3,'Données masses'!$P$8,IF(AND(G64='Données masses'!$Q$3,'Données masses'!$Q$9="oui",OR('Données masses'!$R$9="non",'Données masses'!$R$9="doublon")),'Données masses'!$Q$8,IF(AND(G64='Données masses'!$R$3,'Données masses'!$R$9="oui",OR('Données masses'!$Q$9="non",'Données masses'!$Q$9="doublon")),'Données masses'!$R$8,IF(G64='Données masses'!$S$3,'Données masses'!$S$8,IF(G64='Données masses'!$T$3,'Données masses'!$T$8,IF(AND(G64='Données masses'!$U$3,'Données masses'!$U$9="oui",OR('Données masses'!$V$9="non",'Données masses'!$V$9="doublon")),'Données masses'!$U$8,IF(AND(G64='Données masses'!$V$3,'Données masses'!$V$9="oui",OR('Données masses'!$U$9="non",'Données masses'!$U$9="doublon")),'Données masses'!$V$8,IF(G64='Données masses'!$W$3,'Données masses'!$W$8,IF(G64='Données masses'!$X$3,'Données masses'!$X$8,IF(AND(G64='Données masses'!$Y$3,'Données masses'!$Y$9="oui",OR('Données masses'!$Z$9="non",'Données masses'!$Z$9="doublon")),'Données masses'!$Y$8,IF(AND(G64='Données masses'!$Z$3,'Données masses'!$Z$9="oui",OR('Données masses'!$Y$9="non",'Données masses'!$Y$9="doublon")),'Données masses'!$Z$8,IF(G64='Données masses'!$AA$3,'Données masses'!$AA$8,IF(G64='Données masses'!$AB$3,'Données masses'!$AB$8,IF(AND(G64='Données masses'!$AC$3,'Données masses'!$AC$9="oui",OR('Données masses'!$AD$9="non",'Données masses'!$AD$9="doublon")),'Données masses'!$AC$8,IF(AND(G64='Données masses'!$AD$3,'Données masses'!$AD$9="oui",OR('Données masses'!$AC$9="non",'Données masses'!$AC$9="doublon")),'Données masses'!$AD$8,IF(G64='Données masses'!$AF$3,'Données masses'!$AF$8,IF(G64='Données masses'!$AG$3,'Données masses'!$AG$8,IF(G64='Données masses'!$AH$3,'Données masses'!$AH$8,IF(G64='Données masses'!$AI$3,'Données masses'!$AI$8,IF(G64='Données masses'!$AJ$3,'Données masses'!$AJ$8,IF(G64='Données masses'!$AK$3,'Données masses'!$AK$8,IF(G64='Données masses'!$AL$3,'Données masses'!$AL$8,IF(G64='Données masses'!$AM$3,'Données masses'!$AM$8,IF(G64='Données masses'!$AN$3,'Données masses'!$AN$8,IF(G64='Données masses'!$AO$3,'Données masses'!$AO$8,IF(G64='Données masses'!$AP$3,'Données masses'!$AP$8,"Erreur"))))))))))))))))))))))))))))))))))))))) -> 50.000019 | H65: =IF(OR(ISBLANK(H64),H64="/"),"/",IF(H64='Données masses'!$D$3,'Données masses'!$D$8,IF(AND(H64='Données masses'!$E$3,'Données masses'!$E$9="oui",OR('Données masses'!$F$9="non",'Données masses'!$F$9="doublon")),'Données masses'!$E$8,IF(AND(H64='Données masses'!$F$3,'Données masses'!$F$9="oui",OR('Données masses'!$E$9="non",'Données masses'!$E$9="doublon")),'Données masses'!$F$8,IF(H64='Données masses'!$G$3,'Données masses'!$G$8,IF(H64='Données masses'!$H$3,'Données masses'!$H$8,IF(AND(H64='Données masses'!$I$3,'Données masses'!$I$9="oui",OR('Données masses'!$J$9="non",'Données masses'!$J$9="doublon")),'Données masses'!$I$8,IF(AND(H64='Données masses'!$J$3,'Données masses'!$J$9="oui",OR('Données masses'!$I$9="non",'Données masses'!$I$9="doublon")),'Données masses'!$J$8,IF(H64='Données masses'!$K$3,'Données masses'!$K$8,IF(H64='Données masses'!$L$3,'Données masses'!$L$8,IF(AND(H64='Données masses'!$M$3,'Données masses'!$M$9="oui",OR('Données masses'!$N$9="non",'Données masses'!$N$9="doublon")),'Données masses'!$M$8,IF(AND(H64='Données masses'!$N$3,'Données masses'!$N$9="oui",OR('Données masses'!$M$9="non",'Données masses'!$M$9="doublon")),'Données masses'!$N$8,IF(H64='Données masses'!$O$3,'Données masses'!$O$8,IF(H64='Données masses'!$P$3,'Données masses'!$P$8,IF(AND(H64='Données masses'!$Q$3,'Données masses'!$Q$9="oui",OR('Données masses'!$R$9="non",'Données masses'!$R$9="doublon")),'Données masses'!$Q$8,IF(AND(H64='Données masses'!$R$3,'Données masses'!$R$9="oui",OR('Données masses'!$Q$9="non",'Données masses'!$Q$9="doublon")),'Données masses'!$R$8,IF(H64='Données masses'!$S$3,'Données masses'!$S$8,IF(H64='Données masses'!$T$3,'Données masses'!$T$8,IF(AND(H64='Données masses'!$U$3,'Données masses'!$U$9="oui",OR('Données masses'!$V$9="non",'Données masses'!$V$9="doublon")),'Données masses'!$U$8,IF(AND(H64='Données masses'!$V$3,'Données masses'!$V$9="oui",OR('Données masses'!$U$9="non",'Données masses'!$U$9="doublon")),'Données masses'!$V$8,IF(H64='Données masses'!$W$3,'Données masses'!$W$8,IF(H64='Données masses'!$X$3,'Données masses'!$X$8,IF(AND(H64='Données masses'!$Y$3,'Données masses'!$Y$9="oui",OR('Données masses'!$Z$9="non",'Données masses'!$Z$9="doublon")),'Données masses'!$Y$8,IF(AND(H64='Données masses'!$Z$3,'Données masses'!$Z$9="oui",OR('Données masses'!$Y$9="non",'Données masses'!$Y$9="doublon")),'Données masses'!$Z$8,IF(H64='Données masses'!$AA$3,'Données masses'!$AA$8,IF(H64='Données masses'!$AB$3,'Données masses'!$AB$8,IF(AND(H64='Données masses'!$AC$3,'Données masses'!$AC$9="oui",OR('Données masses'!$AD$9="non",'Données masses'!$AD$9="doublon")),'Données masses'!$AC$8,IF(AND(H64='Données masses'!$AD$3,'Données masses'!$AD$9="oui",OR('Données masses'!$AC$9="non",'Données masses'!$AC$9="doublon")),'Données masses'!$AD$8,IF(H64='Données masses'!$AF$3,'Données masses'!$AF$8,IF(H64='Données masses'!$AG$3,'Données masses'!$AG$8,IF(H64='Données masses'!$AH$3,'Données masses'!$AH$8,IF(H64='Données masses'!$AI$3,'Données masses'!$AI$8,IF(H64='Données masses'!$AJ$3,'Données masses'!$AJ$8,IF(H64='Données masses'!$AK$3,'Données masses'!$AK$8,IF(H64='Données masses'!$AL$3,'Données masses'!$AL$8,IF(H64='Données masses'!$AM$3,'Données masses'!$AM$8,IF(H64='Données masses'!$AN$3,'Données masses'!$AN$8,IF(H64='Données masses'!$AO$3,'Données masses'!$AO$8,IF(H64='Données masses'!$AP$3,'Données masses'!$AP$8,"Erreur"))))))))))))))))))))))))))))))))))))))) -> 100.000015 | I65: =IF(OR(ISBLANK(I64),I64="/"),"/",IF(I64='Données masses'!$D$3,'Données masses'!$D$8,IF(AND(I64='Données masses'!$E$3,'Données masses'!$E$9="oui",OR('Données masses'!$F$9="non",'Données masses'!$F$9="doublon")),'Données masses'!$E$8,IF(AND(I64='Données masses'!$F$3,'Données masses'!$F$9="oui",OR('Données masses'!$E$9="non",'Données masses'!$E$9="doublon")),'Données masses'!$F$8,IF(I64='Données masses'!$G$3,'Données masses'!$G$8,IF(I64='Données masses'!$H$3,'Données masses'!$H$8,IF(AND(I64='Données masses'!$I$3,'Données masses'!$I$9="oui",OR('Données masses'!$J$9="non",'Données masses'!$J$9="doublon")),'Données masses'!$I$8,IF(AND(I64='Données masses'!$J$3,'Données masses'!$J$9="oui",OR('Données masses'!$I$9="non",'Données masses'!$I$9="doublon")),'Données masses'!$J$8,IF(I64='Données masses'!$K$3,'Données masses'!$K$8,IF(I64='Données masses'!$L$3,'Données masses'!$L$8,IF(AND(I64='Données masses'!$M$3,'Données masses'!$M$9="oui",OR('Données masses'!$N$9="non",'Données masses'!$N$9="doublon")),'Données masses'!$M$8,IF(AND(I64='Données masses'!$N$3,'Données masses'!$N$9="oui",OR('Données masses'!$M$9="non",'Données masses'!$M$9="doublon")),'Données masses'!$N$8,IF(I64='Données masses'!$O$3,'Données masses'!$O$8,IF(I64='Données masses'!$P$3,'Données masses'!$P$8,IF(AND(I64='Données masses'!$Q$3,'Données masses'!$Q$9="oui",OR('Données masses'!$R$9="non",'Données masses'!$R$9="doublon")),'Données masses'!$Q$8,IF(AND(I64='Données masses'!$R$3,'Données masses'!$R$9="oui",OR('Données masses'!$Q$9="non",'Données masses'!$Q$9="doublon")),'Données masses'!$R$8,IF(I64='Données masses'!$S$3,'Données masses'!$S$8,IF(I64='Données masses'!$T$3,'Données masses'!$T$8,IF(AND(I64='Données masses'!$U$3,'Données masses'!$U$9="oui",OR('Données masses'!$V$9="non",'Données masses'!$V$9="doublon")),'Données masses'!$U$8,IF(AND(I64='Données masses'!$V$3,'Données masses'!$V$9="oui",OR('Données masses'!$U$9="non",'Données masses'!$U$9="doublon")),'Données masses'!$V$8,IF(I64='Données masses'!$W$3,'Données masses'!$W$8,IF(I64='Données masses'!$X$3,'Données masses'!$X$8,IF(AND(I64='Données masses'!$Y$3,'Données masses'!$Y$9="oui",OR('Données masses'!$Z$9="non",'Données masses'!$Z$9="doublon")),'Données masses'!$Y$8,IF(AND(I64='Données masses'!$Z$3,'Données masses'!$Z$9="oui",OR('Données masses'!$Y$9="non",'Données masses'!$Y$9="doublon")),'Données masses'!$Z$8,IF(I64='Données masses'!$AA$3,'Données masses'!$AA$8,IF(I64='Données masses'!$AB$3,'Données masses'!$AB$8,IF(AND(I64='Données masses'!$AC$3,'Données masses'!$AC$9="oui",OR('Données masses'!$AD$9="non",'Données masses'!$AD$9="doublon")),'Données masses'!$AC$8,IF(AND(I64='Données masses'!$AD$3,'Données masses'!$AD$9="oui",OR('Données masses'!$AC$9="non",'Données masses'!$AC$9="doublon")),'Données masses'!$AD$8,IF(I64='Données masses'!$AF$3,'Données masses'!$AF$8,IF(I64='Données masses'!$AG$3,'Données masses'!$AG$8,IF(I64='Données masses'!$AH$3,'Données masses'!$AH$8,IF(I64='Données masses'!$AI$3,'Données masses'!$AI$8,IF(I64='Données masses'!$AJ$3,'Données masses'!$AJ$8,IF(I64='Données masses'!$AK$3,'Données masses'!$AK$8,IF(I64='Données masses'!$AL$3,'Données masses'!$AL$8,IF(I64='Données masses'!$AM$3,'Données masses'!$AM$8,IF(I64='Données masses'!$AN$3,'Données masses'!$AN$8,IF(I64='Données masses'!$AO$3,'Données masses'!$AO$8,IF(I64='Données masses'!$AP$3,'Données masses'!$AP$8,"Erreur"))))))))))))))))))))))))))))))))))))))) -> 150.000034 | J65: =IF(OR(ISBLANK(J64),J64="/"),"/",IF(J64='Données masses'!$D$3,'Données masses'!$D$8,IF(AND(J64='Données masses'!$E$3,'Données masses'!$E$9="oui",OR('Données masses'!$F$9="non",'Données masses'!$F$9="doublon")),'Données masses'!$E$8,IF(AND(J64='Données masses'!$F$3,'Données masses'!$F$9="oui",OR('Données masses'!$E$9="non",'Données masses'!$E$9="doublon")),'Données masses'!$F$8,IF(J64='Données masses'!$G$3,'Données masses'!$G$8,IF(J64='Données masses'!$H$3,'Données masses'!$H$8,IF(AND(J64='Données masses'!$I$3,'Données masses'!$I$9="oui",OR('Données masses'!$J$9="non",'Données masses'!$J$9="doublon")),'Données masses'!$I$8,IF(AND(J64='Données masses'!$J$3,'Données masses'!$J$9="oui",OR('Données masses'!$I$9="non",'Données masses'!$I$9="doublon")),'Données masses'!$J$8,IF(J64='Données masses'!$K$3,'Données masses'!$K$8,IF(J64='Données masses'!$L$3,'Données masses'!$L$8,IF(AND(J64='Données masses'!$M$3,'Données masses'!$M$9="oui",OR('Données masses'!$N$9="non",'Données masses'!$N$9="doublon")),'Données masses'!$M$8,IF(AND(J64='Données masses'!$N$3,'Données masses'!$N$9="oui",OR('Données masses'!$M$9="non",'Données masses'!$M$9="doublon")),'Données masses'!$N$8,IF(J64='Données masses'!$O$3,'Données masses'!$O$8,IF(J64='Données masses'!$P$3,'Données masses'!$P$8,IF(AND(J64='Données masses'!$Q$3,'Données masses'!$Q$9="oui",OR('Données masses'!$R$9="non",'Données masses'!$R$9="doublon")),'Données masses'!$Q$8,IF(AND(J64='Données masses'!$R$3,'Données masses'!$R$9="oui",OR('Données masses'!$Q$9="non",'Données masses'!$Q$9="doublon")),'Données masses'!$R$8,IF(J64='Données masses'!$S$3,'Données masses'!$S$8,IF(J64='Données masses'!$T$3,'Données masses'!$T$8,IF(AND(J64='Données masses'!$U$3,'Données masses'!$U$9="oui",OR('Données masses'!$V$9="non",'Données masses'!$V$9="doublon")),'Données masses'!$U$8,IF(AND(J64='Données masses'!$V$3,'Données masses'!$V$9="oui",OR('Données masses'!$U$9="non",'Données masses'!$U$9="doublon")),'Données masses'!$V$8,IF(J64='Données masses'!$W$3,'Données masses'!$W$8,IF(J64='Données masses'!$X$3,'Données masses'!$X$8,IF(AND(J64='Données masses'!$Y$3,'Données masses'!$Y$9="oui",OR('Données masses'!$Z$9="non",'Données masses'!$Z$9="doublon")),'Données masses'!$Y$8,IF(AND(J64='Données masses'!$Z$3,'Données masses'!$Z$9="oui",OR('Données masses'!$Y$9="non",'Données masses'!$Y$9="doublon")),'Données masses'!$Z$8,IF(J64='Données masses'!$AA$3,'Données masses'!$AA$8,IF(J64='Données masses'!$AB$3,'Données masses'!$AB$8,IF(AND(J64='Données masses'!$AC$3,'Données masses'!$AC$9="oui",OR('Données masses'!$AD$9="non",'Données masses'!$AD$9="doublon")),'Données masses'!$AC$8,IF(AND(J64='Données masses'!$AD$3,'Données masses'!$AD$9="oui",OR('Données masses'!$AC$9="non",'Données masses'!$AC$9="doublon")),'Données masses'!$AD$8,IF(J64='Données masses'!$AF$3,'Données masses'!$AF$8,IF(J64='Données masses'!$AG$3,'Données masses'!$AG$8,IF(J64='Données masses'!$AH$3,'Données masses'!$AH$8,IF(J64='Données masses'!$AI$3,'Données masses'!$AI$8,IF(J64='Données masses'!$AJ$3,'Données masses'!$AJ$8,IF(J64='Données masses'!$AK$3,'Données masses'!$AK$8,IF(J64='Données masses'!$AL$3,'Données masses'!$AL$8,IF(J64='Données masses'!$AM$3,'Données masses'!$AM$8,IF(J64='Données masses'!$AN$3,'Données masses'!$AN$8,IF(J64='Données masses'!$AO$3,'Données masses'!$AO$8,IF(J64='Données masses'!$AP$3,'Données masses'!$AP$8,"Erreur"))))))))))))))))))))))))))))))))))))))) -> 220.000061 | K65: =IF(OR(ISBLANK(K64),K64="/"),"/",IF(K64='Données masses'!$D$3,'Données masses'!$D$8,IF(AND(K64='Données masses'!$E$3,'Données masses'!$E$9="oui",OR('Données masses'!$F$9="non",'Données masses'!$F$9="doublon")),'Données masses'!$E$8,IF(AND(K64='Données masses'!$F$3,'Données masses'!$F$9="oui",OR('Données masses'!$E$9="non",'Données masses'!$E$9="doublon")),'Données masses'!$F$8,IF(K64='Données masses'!$G$3,'Données masses'!$G$8,IF(K64='Données masses'!$H$3,'Données masses'!$H$8,IF(AND(K64='Données masses'!$I$3,'Données masses'!$I$9="oui",OR('Données masses'!$J$9="non",'Données masses'!$J$9="doublon")),'Données masses'!$I$8,IF(AND(K64='Données masses'!$J$3,'Données masses'!$J$9="oui",OR('Données masses'!$I$9="non",'Données masses'!$I$9="doublon")),'Données masses'!$J$8,IF(K64='Données masses'!$K$3,'Données masses'!$K$8,IF(K64='Données masses'!$L$3,'Données masses'!$L$8,IF(AND(K64='Données masses'!$M$3,'Données masses'!$M$9="oui",OR('Données masses'!$N$9="non",'Données masses'!$N$9="doublon")),'Données masses'!$M$8,IF(AND(K64='Données masses'!$N$3,'Données masses'!$N$9="oui",OR('Données masses'!$M$9="non",'Données masses'!$M$9="doublon")),'Données masses'!$N$8,IF(K64='Données masses'!$O$3,'Données masses'!$O$8,IF(K64='Données masses'!$P$3,'Données masses'!$P$8,IF(AND(K64='Données masses'!$Q$3,'Données masses'!$Q$9="oui",OR('Données masses'!$R$9="non",'Données masses'!$R$9="doublon")),'Données masses'!$Q$8,IF(AND(K64='Données masses'!$R$3,'Données masses'!$R$9="oui",OR('Données masses'!$Q$9="non",'Données masses'!$Q$9="doublon")),'Données masses'!$R$8,IF(K64='Données masses'!$S$3,'Données masses'!$S$8,IF(K64='Données masses'!$T$3,'Données masses'!$T$8,IF(AND(K64='Données masses'!$U$3,'Données masses'!$U$9="oui",OR('Données masses'!$V$9="non",'Données masses'!$V$9="doublon")),'Données masses'!$U$8,IF(AND(K64='Données masses'!$V$3,'Données masses'!$V$9="oui",OR('Données masses'!$U$9="non",'Données masses'!$U$9="doublon")),'Données masses'!$V$8,IF(K64='Données masses'!$W$3,'Données masses'!$W$8,IF(K64='Données masses'!$X$3,'Données masses'!$X$8,IF(AND(K64='Données masses'!$Y$3,'Données masses'!$Y$9="oui",OR('Données masses'!$Z$9="non",'Données masses'!$Z$9="doublon")),'Données masses'!$Y$8,IF(AND(K64='Données masses'!$Z$3,'Données masses'!$Z$9="oui",OR('Données masses'!$Y$9="non",'Données masses'!$Y$9="doublon")),'Données masses'!$Z$8,IF(K64='Données masses'!$AA$3,'Données masses'!$AA$8,IF(K64='Données masses'!$AB$3,'Données masses'!$AB$8,IF(AND(K64='Données masses'!$AC$3,'Données masses'!$AC$9="oui",OR('Données masses'!$AD$9="non",'Données masses'!$AD$9="doublon")),'Données masses'!$AC$8,IF(AND(K64='Données masses'!$AD$3,'Données masses'!$AD$9="oui",OR('Données masses'!$AC$9="non",'Données masses'!$AC$9="doublon")),'Données masses'!$AD$8,IF(K64='Données masses'!$AF$3,'Données masses'!$AF$8,IF(K64='Données masses'!$AG$3,'Données masses'!$AG$8,IF(K64='Données masses'!$AH$3,'Données masses'!$AH$8,IF(K64='Données masses'!$AI$3,'Données masses'!$AI$8,IF(K64='Données masses'!$AJ$3,'Données masses'!$AJ$8,IF(K64='Données masses'!$AK$3,'Données masses'!$AK$8,IF(K64='Données masses'!$AL$3,'Données masses'!$AL$8,IF(K64='Données masses'!$AM$3,'Données masses'!$AM$8,IF(K64='Données masses'!$AN$3,'Données masses'!$AN$8,IF(K64='Données masses'!$AO$3,'Données masses'!$AO$8,IF(K64='Données masses'!$AP$3,'Données masses'!$AP$8,"Erreur"))))))))))))))))))))))))))))))))))))))) -> / | L65: =IF(OR(ISBLANK(L64),L64="/"),"/",IF(L64='Données masses'!$D$3,'Données masses'!$D$8,IF(AND(L64='Données masses'!$E$3,'Données masses'!$E$9="oui",OR('Données masses'!$F$9="non",'Données masses'!$F$9="doublon")),'Données masses'!$E$8,IF(AND(L64='Données masses'!$F$3,'Données masses'!$F$9="oui",OR('Données masses'!$E$9="non",'Données masses'!$E$9="doublon")),'Données masses'!$F$8,IF(L64='Données masses'!$G$3,'Données masses'!$G$8,IF(L64='Données masses'!$H$3,'Données masses'!$H$8,IF(AND(L64='Données masses'!$I$3,'Données masses'!$I$9="oui",OR('Données masses'!$J$9="non",'Données masses'!$J$9="doublon")),'Données masses'!$I$8,IF(AND(L64='Données masses'!$J$3,'Données masses'!$J$9="oui",OR('Données masses'!$I$9="non",'Données masses'!$I$9="doublon")),'Données masses'!$J$8,IF(L64='Données masses'!$K$3,'Données masses'!$K$8,IF(L64='Données masses'!$L$3,'Données masses'!$L$8,IF(AND(L64='Données masses'!$M$3,'Données masses'!$M$9="oui",OR('Données masses'!$N$9="non",'Données masses'!$N$9="doublon")),'Données masses'!$M$8,IF(AND(L64='Données masses'!$N$3,'Données masses'!$N$9="oui",OR('Données masses'!$M$9="non",'Données masses'!$M$9="doublon")),'Données masses'!$N$8,IF(L64='Données masses'!$O$3,'Données masses'!$O$8,IF(L64='Données masses'!$P$3,'Données masses'!$P$8,IF(AND(L64='Données masses'!$Q$3,'Données masses'!$Q$9="oui",OR('Données masses'!$R$9="non",'Données masses'!$R$9="doublon")),'Données masses'!$Q$8,IF(AND(L64='Données masses'!$R$3,'Données masses'!$R$9="oui",OR('Données masses'!$Q$9="non",'Données masses'!$Q$9="doublon")),'Données masses'!$R$8,IF(L64='Données masses'!$S$3,'Données masses'!$S$8,IF(L64='Données masses'!$T$3,'Données masses'!$T$8,IF(AND(L64='Données masses'!$U$3,'Données masses'!$U$9="oui",OR('Données masses'!$V$9="non",'Données masses'!$V$9="doublon")),'Données masses'!$U$8,IF(AND(L64='Données masses'!$V$3,'Données masses'!$V$9="oui",OR('Données masses'!$U$9="non",'Données masses'!$U$9="doublon")),'Données masses'!$V$8,IF(L64='Données masses'!$W$3,'Données masses'!$W$8,IF(L64='Données masses'!$X$3,'Données masses'!$X$8,IF(AND(L64='Données masses'!$Y$3,'Données masses'!$Y$9="oui",OR('Données masses'!$Z$9="non",'Données masses'!$Z$9="doublon")),'Données masses'!$Y$8,IF(AND(L64='Données masses'!$Z$3,'Données masses'!$Z$9="oui",OR('Données masses'!$Y$9="non",'Données masses'!$Y$9="doublon")),'Données masses'!$Z$8,IF(L64='Données masses'!$AA$3,'Données masses'!$AA$8,IF(L64='Données masses'!$AB$3,'Données masses'!$AB$8,IF(AND(L64='Données masses'!$AC$3,'Données masses'!$AC$9="oui",OR('Données masses'!$AD$9="non",'Données masses'!$AD$9="doublon")),'Données masses'!$AC$8,IF(AND(L64='Données masses'!$AD$3,'Données masses'!$AD$9="oui",OR('Données masses'!$AC$9="non",'Données masses'!$AC$9="doublon")),'Données masses'!$AD$8,IF(L64='Données masses'!$AF$3,'Données masses'!$AF$8,IF(L64='Données masses'!$AG$3,'Données masses'!$AG$8,IF(L64='Données masses'!$AH$3,'Données masses'!$AH$8,IF(L64='Données masses'!$AI$3,'Données masses'!$AI$8,IF(L64='Données masses'!$AJ$3,'Données masses'!$AJ$8,IF(L64='Données masses'!$AK$3,'Données masses'!$AK$8,IF(L64='Données masses'!$AL$3,'Données masses'!$AL$8,IF(L64='Données masses'!$AM$3,'Données masses'!$AM$8,IF(L64='Données masses'!$AN$3,'Données masses'!$AN$8,IF(L64='Données masses'!$AO$3,'Données masses'!$AO$8,IF(L64='Données masses'!$AP$3,'Données masses'!$AP$8,"Erreur"))))))))))))))))))))))))))))))))))))))) -> /
B66: Indication de la balance (g) : | E66: xbal | F66: 0.1001 | G66: 50.0003 | H66: 100.0003 | I66: 150 | J66: 219.9998 | K66: / | L66: /
B67: Erreur d'indication relevée (g) : | E67: Ei | F67: =(IF(OR(ISBLANK(F64),ISBLANK(F66),F64="/"),"/",(ABS(F65-F66)))) -> 9.7e-05 | G67: 0.000281 | H67: 0.000285 | I67: 3.4e-05 | J67: 0.000261 | K67: / | L67: /
B69: Excentration (g)
B70: =IF(OR(C17=S20,C17=S21,C17=S22,C17=S23,C17=S24,C17=S25),(HYPERLINK("[C:\Users\b.bevalot\Desktop\Balance\10076_MO-A-RS_MP-001-06_Etalonnage_Vérification_d_.docx]dilumat","Excentration pour un DILUMAT.")),IF(OR(C17=S19,C17=S27,C17=S28),(HYPERLINK("[C:\Users\b.bevalot\Desktop\Balance\10076_MO-A-RS_MP-001-06_Etalonnage_Vérification_d_.docx]cercle","Excentration pour une balance à plateau circulaire.")),IF(OR(C17=S26,C17=S18),(HYPERLINK("[C:\Users\b.bevalot\Desktop\Balance\10076_MO-A-RS_MP-001-06_Etalonnage_Vérification_d_.docx]carré","Excentration pour une balance à plateau rectangle.")),"/"))) -> Excentration pour une balance à plateau circulaire.
B71: Charge appliquée : | F71: 100
B72: Point testé | D72: centre | E72: 1 | F72: 2 | G72: 3 | H72: 4
B73: Valeur de référence Ic : | D73: 100.0001
B74: Valeur lue Ii : | E74: 100.0008 | F74: 100.0005 | G74: 99.9994 | H74: 100.0001
B75: Ii- Ic : | E75: =IF(OR(ISBLANK($D$73),ISBLANK(E74),$D$73="/",E74="/"),"/",ABS(E74-$D$73)) -> 0.0007 | F75: =IF(OR(ISBLANK($D$73),ISBLANK(F74),$D$73="/",F74="/"),"/",ABS(F74-$D$73)) -> 0.0004 | G75: =IF(OR(ISBLANK($D$73),ISBLANK(G74),$D$73="/",G74="/"),"/",ABS(G74-$D$73)) -> 0.0007 | H75: =IF(OR(ISBLANK($D$73),ISBLANK(H74),$D$73="/",H74="/"),"/",ABS(H74-$D$73)) -> 0
B76: Incertitude type : | E76: =IF(OR(ISBLANK(E75:H75),E75:H75="/"),"/",(MAX(E75:H75)/SQRT(6))) -> 0.0002857738033
B78: Exploitation des essais :
B80: Phase 1 : Détermination des erreurs d’indication de l’instrument de pesage et des incertitudes associées
B81: Incertitude-type
B82: ORIGINE | C82: Composante | G82: Charges appliquées (g) :
C83: Grandeur | E83: Source | F83: Loi de probabilité | G83: =IF(ISBLANK(F64),"/",F64) -> 0.1 | H83: 50 | I83: 100 | J83: 150 | K83: 220 | L83: / | M83: /
B84: Détermination de l'erreur d'indication | C84: Répétabilité des pesées de l'étalon de masse (g) | E84: Etalonnage | F84: Normale | G84: =IF(G83="/","/",IF(AND($C$49>0,G83<=$C$49,OR($D$49=0,G83<$D$49)),$C$60,IF(OR(ISBLANK($D$49),G83<=C49),$C$60,$D$60))) -> 8.164965809e-05 | H84: =IF(H83="/","/",IF(AND($C$49>0,H83<=$C$49,OR($D$49=0,H83<$D$49)),$C$60,IF(OR(ISBLANK($D$49),H83<=B49),$C$60,$D$60))) -> 8.164965809e-05 | I84: 8.164965809e-05 | J84: 8.164965809e-05 | K84: 8.164965809e-05 | L84: / | M84: / | N84: <- attention aux étendues
C85: Résoution à vide (g) | E85: Indicateur nimérique | F85: Triangulaire | G85: =IF(AND(G83<>"/",$J$31>0),$J$31/SQRT(6),"/") -> 4.082482905e-05 | H85: =IF(AND(H83<>"/",$J$31>0),$J$31/SQRT(6),"/") -> 4.082482905e-05 | I85: 4.082482905e-05 | J85: 4.082482905e-05 | K85: 4.082482905e-05 | L85: / | M85: / | N85: <- a modifier (intégrer les 2 echelons )
C86: Résolution en charge (charge = étalon de masse) (g) | G86: =IF(AND(G83<=$J$30,G83<$K$30,G83<>"/"),$J$31/SQRT(6),IF(AND(G83>$J$30,G83<=$K$30,G83<>"/"),$K$31/SQRT(6),"/")) -> 4.082482905e-05 | H86: =IF(AND(H83<=$J$30,H83<$K$30,H83<>"/"),$J$31/SQRT(6),IF(AND(H83>$J$30,H83<=$K$30,H83<>"/"),$K$31/SQRT(6),"/")) -> 4.082482905e-05 | I86: 4.082482905e-05 | J86: 4.082482905e-05 | K86: 4.082482905e-05 | L86: / | M86: /
C87: Etalons de masse étalonnées (g) | E87: Certificat d'étalonnage | F87: Normale k = 2 | G87: =IF(OR(ISBLANK(G83),G83="/"),"/",IF(G83='Données masses'!$D$3,'Données masses'!$D$12,IF(AND(G83='Données masses'!$E$3,'Données masses'!$E$9="oui",OR('Données masses'!$F$9="non",'Données masses'!$F$9="doublon")),'Données masses'!$E$12,IF(AND(G83='Données masses'!$F$3,'Données masses'!$F$9="oui",OR('Données masses'!$E$9="non",'Données masses'!$E$9="doublon")),'Données masses'!$F$12,IF(G83='Données masses'!$G$3,'Données masses'!$G$12,IF(G83='Données masses'!$H$3,'Données masses'!$H$12,IF(AND(G83='Données masses'!$I$3,'Données masses'!$I$9="oui",OR('Données masses'!$J$9="non",'Données masses'!$J$9="doublon")),'Données masses'!$I$12,IF(AND(G83='Données masses'!$J$3,'Données masses'!$J$9="oui",OR('Données masses'!$I$9="non",'Données masses'!$I$9="doublon")),'Données masses'!$J$12,IF(G83='Données masses'!$K$3,'Données masses'!$K$12,IF(G83='Données masses'!$L$3,'Données masses'!$L$12,IF(AND(G83='Données masses'!$M$3,'Données masses'!$M$9="oui",OR('Données masses'!$N$9="non",'Données masses'!$N$9="doublon")),'Données masses'!$M$12,IF(AND(G83='Données masses'!$N$3,'Données masses'!$N$9="oui",OR('Données masses'!$M$9="non",'Données masses'!$M$9="doublon")),'Données masses'!$N$12,IF(G83='Données masses'!$O$3,'Données masses'!$O$12,IF(G83='Données masses'!$P$3,'Données masses'!$P$12,IF(AND(G83='Données masses'!$Q$3,'Données masses'!$Q$9="oui",OR('Données masses'!$R$9="non",'Données masses'!$R$9="doublon")),'Données masses'!$Q$12,IF(AND(G83='Données masses'!$R$3,'Données masses'!$R$9="oui",OR('Données masses'!$Q$9="non",'Données masses'!$Q$9="doublon")),'Données masses'!$R$12,IF(G83='Données masses'!$S$3,'Données masses'!$S$12,IF(G83='Données masses'!$T$3,'Données masses'!$T$12,IF(AND(G83='Données masses'!$U$3,'Données masses'!$U$9="oui",OR('Données masses'!$V$9="non",'Données masses'!$V$9="doublon")),'Données masses'!$U$12,IF(AND(G83='Données masses'!$V$3,'Données masses'!$V$9="oui",OR('Données masses'!$U$9="non",'Données masses'!$U$9="doublon")),'Données masses'!$V$12,IF(G83='Données masses'!$W$3,'Données masses'!$W$12,IF(G83='Données masses'!$X$3,'Données masses'!$X$12,IF(AND(G83='Données masses'!$Y$3,'Données masses'!$Y$9="oui",OR('Données masses'!$Z$9="non",'Données masses'!$Z$9="doublon")),'Données masses'!$Y$12,IF(AND(G83='Données masses'!$Z$3,'Données masses'!$Z$9="oui",OR('Données masses'!$Y$9="non",'Données masses'!$Y$9="doublon")),'Données masses'!$Z$12,IF(G83='Données masses'!$AA$3,'Données masses'!$AA$12,IF(G83='Données masses'!$AB$3,'Données masses'!$AB$12,IF(AND(G83='Données masses'!$AC$3,'Données masses'!$AC$9="oui",OR('Données masses'!$AD$9="non",'Données masses'!$AD$9="doublon")),'Données masses'!$AC$12,IF(AND(G83='Données masses'!$AD$3,'Données masses'!$AD$9="oui",OR('Données masses'!$AC$9="non",'Données masses'!$AC$9="doublon")),'Données masses'!$AD$12,IF(G83='Données masses'!$AF$3,'Données masses'!$AF$12,IF(G83='Données masses'!$AG$3,'Données masses'!$AG$12,IF(G83='Données masses'!$AH$3,'Données masses'!$AH$12,IF(G83='Données masses'!$AI$3,'Données masses'!$AI$12,IF(G83='Données masses'!$AJ$3,'Données masses'!$AJ$12,IF(G83='Données masses'!$AK$3,'Données masses'!$AK$12,IF(G83='Données masses'!$AL$3,'Données masses'!$AL$12,IF(G83='Données masses'!$AM$3,'Données masses'!$AM$12,IF(G83='Données masses'!$AN$3,'Données masses'!$AN$12,IF(G83='Données masses'!$AO$3,'Données masses'!$AO$12,IF(G83='Données masses'!$AP$3,'Données masses'!$AP$12,"ERREUR!!!!!"))))))))))))))))))))))))))))))))))))))) -> 3.535533906e-06 | H87: =IF(OR(ISBLANK(H83),H83="/"),"/",IF(H83='Données masses'!$D$3,'Données masses'!$D$12,IF(AND(H83='Données masses'!$E$3,'Données masses'!$E$9="oui",OR('Données masses'!$F$9="non",'Données masses'!$F$9="doublon")),'Données masses'!$E$12,IF(AND(H83='Données masses'!$F$3,'Données masses'!$F$9="oui",OR('Données masses'!$E$9="non",'Données masses'!$E$9="doublon")),'Données masses'!$F$12,IF(H83='Données masses'!$G$3,'Données masses'!$G$12,IF(H83='Données masses'!$H$3,'Données masses'!$H$12,IF(AND(H83='Données masses'!$I$3,'Données masses'!$I$9="oui",OR('Données masses'!$J$9="non",'Données masses'!$J$9="doublon")),'Données masses'!$I$12,IF(AND(H83='Données masses'!$J$3,'Données masses'!$J$9="oui",OR('Données masses'!$I$9="non",'Données masses'!$I$9="doublon")),'Données masses'!$J$12,IF(H83='Données masses'!$K$3,'Données masses'!$K$12,IF(H83='Données masses'!$L$3,'Données masses'!$L$12,IF(AND(H83='Données masses'!$M$3,'Données masses'!$M$9="oui",OR('Données masses'!$N$9="non",'Données masses'!$N$9="doublon")),'Données masses'!$M$12,IF(AND(H83='Données masses'!$N$3,'Données masses'!$N$9="oui",OR('Données masses'!$M$9="non",'Données masses'!$M$9="doublon")),'Données masses'!$N$12,IF(H83='Données masses'!$O$3,'Données masses'!$O$12,IF(H83='Données masses'!$P$3,'Données masses'!$P$12,IF(AND(H83='Données masses'!$Q$3,'Données masses'!$Q$9="oui",OR('Données masses'!$R$9="non",'Données masses'!$R$9="doublon")),'Données masses'!$Q$12,IF(AND(H83='Données masses'!$R$3,'Données masses'!$R$9="oui",OR('Données masses'!$Q$9="non",'Données masses'!$Q$9="doublon")),'Données masses'!$R$12,IF(H83='Données masses'!$S$3,'Données masses'!$S$12,IF(H83='Données masses'!$T$3,'Données masses'!$T$12,IF(AND(H83='Données masses'!$U$3,'Données masses'!$U$9="oui",OR('Données masses'!$V$9="non",'Données masses'!$V$9="doublon")),'Données masses'!$U$12,IF(AND(H83='Données masses'!$V$3,'Données masses'!$V$9="oui",OR('Données masses'!$U$9="non",'Données masses'!$U$9="doublon")),'Données masses'!$V$12,IF(H83='Données masses'!$W$3,'Données masses'!$W$12,IF(H83='Données masses'!$X$3,'Données masses'!$X$12,IF(AND(H83='Données masses'!$Y$3,'Données masses'!$Y$9="oui",OR('Données masses'!$Z$9="non",'Données masses'!$Z$9="doublon")),'Données masses'!$Y$12,IF(AND(H83='Données masses'!$Z$3,'Données masses'!$Z$9="oui",OR('Données masses'!$Y$9="non",'Données masses'!$Y$9="doublon")),'Données masses'!$Z$12,IF(H83='Données masses'!$AA$3,'Données masses'!$AA$12,IF(H83='Données masses'!$AB$3,'Données masses'!$AB$12,IF(AND(H83='Données masses'!$AC$3,'Données masses'!$AC$9="oui",OR('Données masses'!$AD$9="non",'Données masses'!$AD$9="doublon")),'Données masses'!$AC$12,IF(AND(H83='Données masses'!$AD$3,'Données masses'!$AD$9="oui",OR('Données masses'!$AC$9="non",'Données masses'!$AC$9="doublon")),'Données masses'!$AD$12,IF(H83='Données masses'!$AF$3,'Données masses'!$AF$12,IF(H83='Données masses'!$AG$3,'Données masses'!$AG$12,IF(H83='Données masses'!$AH$3,'Données masses'!$AH$12,IF(H83='Données masses'!$AI$3,'Données masses'!$AI$12,IF(H83='Données masses'!$AJ$3,'Données masses'!$AJ$12,IF(H83='Données masses'!$AK$3,'Données masses'!$AK$12,IF(H83='Données masses'!$AL$3,'Données masses'!$AL$12,IF(H83='Données masses'!$AM$3,'Données masses'!$AM$12,IF(H83='Données masses'!$AN$3,'Données masses'!$AN$12,IF(H83='Données masses'!$AO$3,'Données masses'!$AO$12,IF(H83='Données masses'!$AP$3,'Données masses'!$AP$12,"ERREUR!!!!!"))))))))))))))))))))))))))))))))))))))) -> 2.121320344e-05 | I87: =IF(OR(ISBLANK(I83),I83="/"),"/",IF(I83='Données masses'!$D$3,'Données masses'!$D$12,IF(AND(I83='Données masses'!$E$3,'Données masses'!$E$9="oui",OR('Données masses'!$F$9="non",'Données masses'!$F$9="doublon")),'Données masses'!$E$12,IF(AND(I83='Données masses'!$F$3,'Données masses'!$F$9="oui",OR('Données masses'!$E$9="non",'Données masses'!$E$9="doublon")),'Données masses'!$F$12,IF(I83='Données masses'!$G$3,'Données masses'!$G$12,IF(I83='Données masses'!$H$3,'Données masses'!$H$12,IF(AND(I83='Données masses'!$I$3,'Données masses'!$I$9="oui",OR('Données masses'!$J$9="non",'Données masses'!$J$9="doublon")),'Données masses'!$I$12,IF(AND(I83='Données masses'!$J$3,'Données masses'!$J$9="oui",OR('Données masses'!$I$9="non",'Données masses'!$I$9="doublon")),'Données masses'!$J$12,IF(I83='Données masses'!$K$3,'Données masses'!$K$12,IF(I83='Données masses'!$L$3,'Données masses'!$L$12,IF(AND(I83='Données masses'!$M$3,'Données masses'!$M$9="oui",OR('Données masses'!$N$9="non",'Données masses'!$N$9="doublon")),'Données masses'!$M$12,IF(AND(I83='Données masses'!$N$3,'Données masses'!$N$9="oui",OR('Données masses'!$M$9="non",'Données masses'!$M$9="doublon")),'Données masses'!$N$12,IF(I83='Données masses'!$O$3,'Données masses'!$O$12,IF(I83='Données masses'!$P$3,'Données masses'!$P$12,IF(AND(I83='Données masses'!$Q$3,'Données masses'!$Q$9="oui",OR('Données masses'!$R$9="non",'Données masses'!$R$9="doublon")),'Données masses'!$Q$12,IF(AND(I83='Données masses'!$R$3,'Données masses'!$R$9="oui",OR('Données masses'!$Q$9="non",'Données masses'!$Q$9="doublon")),'Données masses'!$R$12,IF(I83='Données masses'!$S$3,'Données masses'!$S$12,IF(I83='Données masses'!$T$3,'Données masses'!$T$12,IF(AND(I83='Données masses'!$U$3,'Données masses'!$U$9="oui",OR('Données masses'!$V$9="non",'Données masses'!$V$9="doublon")),'Données masses'!$U$12,IF(AND(I83='Données masses'!$V$3,'Données masses'!$V$9="oui",OR('Données masses'!$U$9="non",'Données masses'!$U$9="doublon")),'Données masses'!$V$12,IF(I83='Données masses'!$W$3,'Données masses'!$W$12,IF(I83='Données masses'!$X$3,'Données masses'!$X$12,IF(AND(I83='Données masses'!$Y$3,'Données masses'!$Y$9="oui",OR('Données masses'!$Z$9="non",'Données masses'!$Z$9="doublon")),'Données masses'!$Y$12,IF(AND(I83='Données masses'!$Z$3,'Données masses'!$Z$9="oui",OR('Données masses'!$Y$9="non",'Données masses'!$Y$9="doublon")),'Données masses'!$Z$12,IF(I83='Données masses'!$AA$3,'Données masses'!$AA$12,IF(I83='Données masses'!$AB$3,'Données masses'!$AB$12,IF(AND(I83='Données masses'!$AC$3,'Données masses'!$AC$9="oui",OR('Données masses'!$AD$9="non",'Données masses'!$AD$9="doublon")),'Données masses'!$AC$12,IF(AND(I83='Données masses'!$AD$3,'Données masses'!$AD$9="oui",OR('Données masses'!$AC$9="non",'Données masses'!$AC$9="doublon")),'Données masses'!$AD$12,IF(I83='Données masses'!$AF$3,'Données masses'!$AF$12,IF(I83='Données masses'!$AG$3,'Données masses'!$AG$12,IF(I83='Données masses'!$AH$3,'Données masses'!$AH$12,IF(I83='Données masses'!$AI$3,'Données masses'!$AI$12,IF(I83='Données masses'!$AJ$3,'Données masses'!$AJ$12,IF(I83='Données masses'!$AK$3,'Données masses'!$AK$12,IF(I83='Données masses'!$AL$3,'Données masses'!$AL$12,IF(I83='Données masses'!$AM$3,'Données masses'!$AM$12,IF(I83='Données masses'!$AN$3,'Données masses'!$AN$12,IF(I83='Données masses'!$AO$3,'Données masses'!$AO$12,IF(I83='Données masses'!$AP$3,'Données masses'!$AP$12,"ERREUR!!!!!"))))))))))))))))))))))))))))))))))))))) -> 3.535533906e-05 | J87: =IF(OR(ISBLANK(J83),J83="/"),"/",IF(J83='Données masses'!$D$3,'Données masses'!$D$12,IF(AND(J83='Données masses'!$E$3,'Données masses'!$E$9="oui",OR('Données masses'!$F$9="non",'Données masses'!$F$9="doublon")),'Données masses'!$E$12,IF(AND(J83='Données masses'!$F$3,'Données masses'!$F$9="oui",OR('Données masses'!$E$9="non",'Données masses'!$E$9="doublon")),'Données masses'!$F$12,IF(J83='Données masses'!$G$3,'Données masses'!$G$12,IF(J83='Données masses'!$H$3,'Données masses'!$H$12,IF(AND(J83='Données masses'!$I$3,'Données masses'!$I$9="oui",OR('Données masses'!$J$9="non",'Données masses'!$J$9="doublon")),'Données masses'!$I$12,IF(AND(J83='Données masses'!$J$3,'Données masses'!$J$9="oui",OR('Données masses'!$I$9="non",'Données masses'!$I$9="doublon")),'Données masses'!$J$12,IF(J83='Données masses'!$K$3,'Données masses'!$K$12,IF(J83='Données masses'!$L$3,'Données masses'!$L$12,IF(AND(J83='Données masses'!$M$3,'Données masses'!$M$9="oui",OR('Données masses'!$N$9="non",'Données masses'!$N$9="doublon")),'Données masses'!$M$12,IF(AND(J83='Données masses'!$N$3,'Données masses'!$N$9="oui",OR('Données masses'!$M$9="non",'Données masses'!$M$9="doublon")),'Données masses'!$N$12,IF(J83='Données masses'!$O$3,'Données masses'!$O$12,IF(J83='Données masses'!$P$3,'Données masses'!$P$12,IF(AND(J83='Données masses'!$Q$3,'Données masses'!$Q$9="oui",OR('Données masses'!$R$9="non",'Données masses'!$R$9="doublon")),'Données masses'!$Q$12,IF(AND(J83='Données masses'!$R$3,'Données masses'!$R$9="oui",OR('Données masses'!$Q$9="non",'Données masses'!$Q$9="doublon")),'Données masses'!$R$12,IF(J83='Données masses'!$S$3,'Données masses'!$S$12,IF(J83='Données masses'!$T$3,'Données masses'!$T$12,IF(AND(J83='Données masses'!$U$3,'Données masses'!$U$9="oui",OR('Données masses'!$V$9="non",'Données masses'!$V$9="doublon")),'Données masses'!$U$12,IF(AND(J83='Données masses'!$V$3,'Données masses'!$V$9="oui",OR('Données masses'!$U$9="non",'Données masses'!$U$9="doublon")),'Données masses'!$V$12,IF(J83='Données masses'!$W$3,'Données masses'!$W$12,IF(J83='Données masses'!$X$3,'Données masses'!$X$12,IF(AND(J83='Données masses'!$Y$3,'Données masses'!$Y$9="oui",OR('Données masses'!$Z$9="non",'Données masses'!$Z$9="doublon")),'Données masses'!$Y$12,IF(AND(J83='Données masses'!$Z$3,'Données masses'!$Z$9="oui",OR('Données masses'!$Y$9="non",'Données masses'!$Y$9="doublon")),'Données masses'!$Z$12,IF(J83='Données masses'!$AA$3,'Données masses'!$AA$12,IF(J83='Données masses'!$AB$3,'Données masses'!$AB$12,IF(AND(J83='Données masses'!$AC$3,'Données masses'!$AC$9="oui",OR('Données masses'!$AD$9="non",'Données masses'!$AD$9="doublon")),'Données masses'!$AC$12,IF(AND(J83='Données masses'!$AD$3,'Données masses'!$AD$9="oui",OR('Données masses'!$AC$9="non",'Données masses'!$AC$9="doublon")),'Données masses'!$AD$12,IF(J83='Données masses'!$AF$3,'Données masses'!$AF$12,IF(J83='Données masses'!$AG$3,'Données masses'!$AG$12,IF(J83='Données masses'!$AH$3,'Données masses'!$AH$12,IF(J83='Données masses'!$AI$3,'Données masses'!$AI$12,IF(J83='Données masses'!$AJ$3,'Données masses'!$AJ$12,IF(J83='Données masses'!$AK$3,'Données masses'!$AK$12,IF(J83='Données masses'!$AL$3,'Données masses'!$AL$12,IF(J83='Données masses'!$AM$3,'Données masses'!$AM$12,IF(J83='Données masses'!$AN$3,'Données masses'!$AN$12,IF(J83='Données masses'!$AO$3,'Données masses'!$AO$12,IF(J83='Données masses'!$AP$3,'Données masses'!$AP$12,"ERREUR!!!!!"))))))))))))))))))))))))))))))))))))))) -> 5.656854249e-05 | K87: =IF(OR(ISBLANK(K83),K83="/"),"/",IF(K83='Données masses'!$D$3,'Données masses'!$D$12,IF(AND(K83='Données masses'!$E$3,'Données masses'!$E$9="oui",OR('Données masses'!$F$9="non",'Données masses'!$F$9="doublon")),'Données masses'!$E$12,IF(AND(K83='Données masses'!$F$3,'Données masses'!$F$9="oui",OR('Données masses'!$E$9="non",'Données masses'!$E$9="doublon")),'Données masses'!$F$12,IF(K83='Données masses'!$G$3,'Données masses'!$G$12,IF(K83='Données masses'!$H$3,'Données masses'!$H$12,IF(AND(K83='Données masses'!$I$3,'Données masses'!$I$9="oui",OR('Données masses'!$J$9="non",'Données masses'!$J$9="doublon")),'Données masses'!$I$12,IF(AND(K83='Données masses'!$J$3,'Données masses'!$J$9="oui",OR('Données masses'!$I$9="non",'Données masses'!$I$9="doublon")),'Données masses'!$J$12,IF(K83='Données masses'!$K$3,'Données masses'!$K$12,IF(K83='Données masses'!$L$3,'Données masses'!$L$12,IF(AND(K83='Données masses'!$M$3,'Données masses'!$M$9="oui",OR('Données masses'!$N$9="non",'Données masses'!$N$9="doublon")),'Données masses'!$M$12,IF(AND(K83='Données masses'!$N$3,'Données masses'!$N$9="oui",OR('Données masses'!$M$9="non",'Données masses'!$M$9="doublon")),'Données masses'!$N$12,IF(K83='Données masses'!$O$3,'Données masses'!$O$12,IF(K83='Données masses'!$P$3,'Données masses'!$P$12,IF(AND(K83='Données masses'!$Q$3,'Données masses'!$Q$9="oui",OR('Données masses'!$R$9="non",'Données masses'!$R$9="doublon")),'Données masses'!$Q$12,IF(AND(K83='Données masses'!$R$3,'Données masses'!$R$9="oui",OR('Données masses'!$Q$9="non",'Données masses'!$Q$9="doublon")),'Données masses'!$R$12,IF(K83='Données masses'!$S$3,'Données masses'!$S$12,IF(K83='Données masses'!$T$3,'Données masses'!$T$12,IF(AND(K83='Données masses'!$U$3,'Données masses'!$U$9="oui",OR('Données masses'!$V$9="non",'Données masses'!$V$9="doublon")),'Données masses'!$U$12,IF(AND(K83='Données masses'!$V$3,'Données masses'!$V$9="oui",OR('Données masses'!$U$9="non",'Données masses'!$U$9="doublon")),'Données masses'!$V$12,IF(K83='Données masses'!$W$3,'Données masses'!$W$12,IF(K83='Données masses'!$X$3,'Données masses'!$X$12,IF(AND(K83='Données masses'!$Y$3,'Données masses'!$Y$9="oui",OR('Données masses'!$Z$9="non",'Données masses'!$Z$9="doublon")),'Données masses'!$Y$12,IF(AND(K83='Données masses'!$Z$3,'Données masses'!$Z$9="oui",OR('Données masses'!$Y$9="non",'Données masses'!$Y$9="doublon")),'Données masses'!$Z$12,IF(K83='Données masses'!$AA$3,'Données masses'!$AA$12,IF(K83='Données masses'!$AB$3,'Données masses'!$AB$12,IF(AND(K83='Données masses'!$AC$3,'Données masses'!$AC$9="oui",OR('Données masses'!$AD$9="non",'Données masses'!$AD$9="doublon")),'Données masses'!$AC$12,IF(AND(K83='Données masses'!$AD$3,'Données masses'!$AD$9="oui",OR('Données masses'!$AC$9="non",'Données masses'!$AC$9="doublon")),'Données masses'!$AD$12,IF(K83='Données masses'!$AF$3,'Données masses'!$AF$12,IF(K83='Données masses'!$AG$3,'Données masses'!$AG$12,IF(K83='Données masses'!$AH$3,'Données masses'!$AH$12,IF(K83='Données masses'!$AI$3,'Données masses'!$AI$12,IF(K83='Données masses'!$AJ$3,'Données masses'!$AJ$12,IF(K83='Données masses'!$AK$3,'Données masses'!$AK$12,IF(K83='Données masses'!$AL$3,'Données masses'!$AL$12,IF(K83='Données masses'!$AM$3,'Données masses'!$AM$12,IF(K83='Données masses'!$AN$3,'Données masses'!$AN$12,IF(K83='Données masses'!$AO$3,'Données masses'!$AO$12,IF(K83='Données masses'!$AP$3,'Données masses'!$AP$12,"ERREUR!!!!!"))))))))))))))))))))))))))))))))))))))) -> 8.909545443e-05 | L87: =IF(OR(ISBLANK(L83),L83="/"),"/",IF(L83='Données masses'!$D$3,'Données masses'!$D$12,IF(AND(L83='Données masses'!$E$3,'Données masses'!$E$9="oui",OR('Données masses'!$F$9="non",'Données masses'!$F$9="doublon")),'Données masses'!$E$12,IF(AND(L83='Données masses'!$F$3,'Données masses'!$F$9="oui",OR('Données masses'!$E$9="non",'Données masses'!$E$9="doublon")),'Données masses'!$F$12,IF(L83='Données masses'!$G$3,'Données masses'!$G$12,IF(L83='Données masses'!$H$3,'Données masses'!$H$12,IF(AND(L83='Données masses'!$I$3,'Données masses'!$I$9="oui",OR('Données masses'!$J$9="non",'Données masses'!$J$9="doublon")),'Données masses'!$I$12,IF(AND(L83='Données masses'!$J$3,'Données masses'!$J$9="oui",OR('Données masses'!$I$9="non",'Données masses'!$I$9="doublon")),'Données masses'!$J$12,IF(L83='Données masses'!$K$3,'Données masses'!$K$12,IF(L83='Données masses'!$L$3,'Données masses'!$L$12,IF(AND(L83='Données masses'!$M$3,'Données masses'!$M$9="oui",OR('Données masses'!$N$9="non",'Données masses'!$N$9="doublon")),'Données masses'!$M$12,IF(AND(L83='Données masses'!$N$3,'Données masses'!$N$9="oui",OR('Données masses'!$M$9="non",'Données masses'!$M$9="doublon")),'Données masses'!$N$12,IF(L83='Données masses'!$O$3,'Données masses'!$O$12,IF(L83='Données masses'!$P$3,'Données masses'!$P$12,IF(AND(L83='Données masses'!$Q$3,'Données masses'!$Q$9="oui",OR('Données masses'!$R$9="non",'Données masses'!$R$9="doublon")),'Données masses'!$Q$12,IF(AND(L83='Données masses'!$R$3,'Données masses'!$R$9="oui",OR('Données masses'!$Q$9="non",'Données masses'!$Q$9="doublon")),'Données masses'!$R$12,IF(L83='Données masses'!$S$3,'Données masses'!$S$12,IF(L83='Données masses'!$T$3,'Données masses'!$T$12,IF(AND(L83='Données masses'!$U$3,'Données masses'!$U$9="oui",OR('Données masses'!$V$9="non",'Données masses'!$V$9="doublon")),'Données masses'!$U$12,IF(AND(L83='Données masses'!$V$3,'Données masses'!$V$9="oui",OR('Données masses'!$U$9="non",'Données masses'!$U$9="doublon")),'Données masses'!$V$12,IF(L83='Données masses'!$W$3,'Données masses'!$W$12,IF(L83='Données masses'!$X$3,'Données masses'!$X$12,IF(AND(L83='Données masses'!$Y$3,'Données masses'!$Y$9="oui",OR('Données masses'!$Z$9="non",'Données masses'!$Z$9="doublon")),'Données masses'!$Y$12,IF(AND(L83='Données masses'!$Z$3,'Données masses'!$Z$9="oui",OR('Données masses'!$Y$9="non",'Données masses'!$Y$9="doublon")),'Données masses'!$Z$12,IF(L83='Données masses'!$AA$3,'Données masses'!$AA$12,IF(L83='Données masses'!$AB$3,'Données masses'!$AB$12,IF(AND(L83='Données masses'!$AC$3,'Données masses'!$AC$9="oui",OR('Données masses'!$AD$9="non",'Données masses'!$AD$9="doublon")),'Données masses'!$AC$12,IF(AND(L83='Données masses'!$AD$3,'Données masses'!$AD$9="oui",OR('Données masses'!$AC$9="non",'Données masses'!$AC$9="doublon")),'Données masses'!$AD$12,IF(L83='Données masses'!$AF$3,'Données masses'!$AF$12,IF(L83='Données masses'!$AG$3,'Données masses'!$AG$12,IF(L83='Données masses'!$AH$3,'Données masses'!$AH$12,IF(L83='Données masses'!$AI$3,'Données masses'!$AI$12,IF(L83='Données masses'!$AJ$3,'Données masses'!$AJ$12,IF(L83='Données masses'!$AK$3,'Données masses'!$AK$12,IF(L83='Données masses'!$AL$3,'Données masses'!$AL$12,IF(L83='Données masses'!$AM$3,'Données masses'!$AM$12,IF(L83='Données masses'!$AN$3,'Données masses'!$AN$12,IF(L83='Données masses'!$AO$3,'Données masses'!$AO$12,IF(L83='Données masses'!$AP$3,'Données masses'!$AP$12,"ERREUR!!!!!"))))))))))))))))))))))))))))))))))))))) -> / | M87: =IF(OR(ISBLANK(M83),M83="/"),"/",IF(M83='Données masses'!$D$3,'Données masses'!$D$12,IF(AND(M83='Données masses'!$E$3,'Données masses'!$E$9="oui",OR('Données masses'!$F$9="non",'Données masses'!$F$9="doublon")),'Données masses'!$E$12,IF(AND(M83='Données masses'!$F$3,'Données masses'!$F$9="oui",OR('Données masses'!$E$9="non",'Données masses'!$E$9="doublon")),'Données masses'!$F$12,IF(M83='Données masses'!$G$3,'Données masses'!$G$12,IF(M83='Données masses'!$H$3,'Données masses'!$H$12,IF(AND(M83='Données masses'!$I$3,'Données masses'!$I$9="oui",OR('Données masses'!$J$9="non",'Données masses'!$J$9="doublon")),'Données masses'!$I$12,IF(AND(M83='Données masses'!$J$3,'Données masses'!$J$9="oui",OR('Données masses'!$I$9="non",'Données masses'!$I$9="doublon")),'Données masses'!$J$12,IF(M83='Données masses'!$K$3,'Données masses'!$K$12,IF(M83='Données masses'!$L$3,'Données masses'!$L$12,IF(AND(M83='Données masses'!$M$3,'Données masses'!$M$9="oui",OR('Données masses'!$N$9="non",'Données masses'!$N$9="doublon")),'Données masses'!$M$12,IF(AND(M83='Données masses'!$N$3,'Données masses'!$N$9="oui",OR('Données masses'!$M$9="non",'Données masses'!$M$9="doublon")),'Données masses'!$N$12,IF(M83='Données masses'!$O$3,'Données masses'!$O$12,IF(M83='Données masses'!$P$3,'Données masses'!$P$12,IF(AND(M83='Données masses'!$Q$3,'Données masses'!$Q$9="oui",OR('Données masses'!$R$9="non",'Données masses'!$R$9="doublon")),'Données masses'!$Q$12,IF(AND(M83='Données masses'!$R$3,'Données masses'!$R$9="oui",OR('Données masses'!$Q$9="non",'Données masses'!$Q$9="doublon")),'Données masses'!$R$12,IF(M83='Données masses'!$S$3,'Données masses'!$S$12,IF(M83='Données masses'!$T$3,'Données masses'!$T$12,IF(AND(M83='Données masses'!$U$3,'Données masses'!$U$9="oui",OR('Données masses'!$V$9="non",'Données masses'!$V$9="doublon")),'Données masses'!$U$12,IF(AND(M83='Données masses'!$V$3,'Données masses'!$V$9="oui",OR('Données masses'!$U$9="non",'Données masses'!$U$9="doublon")),'Données masses'!$V$12,IF(M83='Données masses'!$W$3,'Données masses'!$W$12,IF(M83='Données masses'!$X$3,'Données masses'!$X$12,IF(AND(M83='Données masses'!$Y$3,'Données masses'!$Y$9="oui",OR('Données masses'!$Z$9="non",'Données masses'!$Z$9="doublon")),'Données masses'!$Y$12,IF(AND(M83='Données masses'!$Z$3,'Données masses'!$Z$9="oui",OR('Données masses'!$Y$9="non",'Données masses'!$Y$9="doublon")),'Données masses'!$Z$12,IF(M83='Données masses'!$AA$3,'Données masses'!$AA$12,IF(M83='Données masses'!$AB$3,'Données masses'!$AB$12,IF(AND(M83='Données masses'!$AC$3,'Données masses'!$AC$9="oui",OR('Données masses'!$AD$9="non",'Données masses'!$AD$9="doublon")),'Données masses'!$AC$12,IF(AND(M83='Données masses'!$AD$3,'Données masses'!$AD$9="oui",OR('Données masses'!$AC$9="non",'Données masses'!$AC$9="doublon")),'Données masses'!$AD$12,IF(M83='Données masses'!$AF$3,'Données masses'!$AF$12,IF(M83='Données masses'!$AG$3,'Données masses'!$AG$12,IF(M83='Données masses'!$AH$3,'Données masses'!$AH$12,IF(M83='Données masses'!$AI$3,'Données masses'!$AI$12,IF(M83='Données masses'!$AJ$3,'Données masses'!$AJ$12,IF(M83='Données masses'!$AK$3,'Données masses'!$AK$12,IF(M83='Données masses'!$AL$3,'Données masses'!$AL$12,IF(M83='Données masses'!$AM$3,'Données masses'!$AM$12,IF(M83='Données masses'!$AN$3,'Données masses'!$AN$12,IF(M83='Données masses'!$AO$3,'Données masses'!$AO$12,IF(M83='Données masses'!$AP$3,'Données masses'!$AP$12,"ERREUR!!!!!"))))))))))))))))))))))))))))))))))))))) -> / | N87: <- toujours la même masse qui sert pour les doublons 2000+1000 x²+y² ou racine ( (x+y)²+(xp+yp)²) REVOIR la formule
C88: Influence de la température (g) | E88: Données | F88: Rectangulaire | G88: =IF(ISBLANK($M$29),"Remplir C",IF(AND($M$29>0,G86<>"/"),$M$29*($D$38/SQRT(3))*G83,"/")) -> 6.062177826e-07 | H88: =IF(ISBLANK($M$29),"Remplir C",IF(AND($M$29>0,H86<>"/"),$M$29*($D$38/SQRT(3))*H83,"/")) -> 0.0003031088913 | I88: 0.0006062177826 | J88: 0.000909326674 | K88: 0.001333679122 | L88: / | M88: /
B89: Incertitude - type composée (g) | G89: =IF(G83<>"/",SQRT((G84*G84)+(G85*G85)+(G86*G86)+(G87*G87)+(G88*G88)),"/") -> 0.0001000643168 | H89: =IF(H83<>"/",SQRT((H84*H84)+(H85*H85)+(H86*H86)+(H87*H87)+(H88*H88)),"/") -> 0.000319882791 | I89: =IF(I83<>"/",SQRT((I84*I84)+(I85*I85)+(I86*I86)+(I87*I87)+(I88*I88)),"/") -> 0.0006154266813 | J89: =IF(J83<>"/",SQRT((J84*J84)+(J85*J85)+(J86*J86)+(J87*J87)+(J88*J88)),"/") -> 0.0009165560539 | K89: 0.001340387257 | L89: / | M89: /
B90: Incertitude élargie (k=2) (g) | G90: =IF(G83<>"/",2*G89,"/") -> 0.0002001286336 | H90: =IF(H83<>"/",2*H89,"/") -> 0.0006397655821 | I90: 0.001230853363 | J90: 0.001833112108 | K90: 0.002680774515 | L90: / | M90: /
B92: Incertitude - type composée (mg) | G92: =IF(G83<>"/",G89*1000,"/") -> 0.1000643168 | H92: 0.319882791 | I92: 0.6154266813 | J92: 0.9165560539 | K92: 1.340387257 | L92: / | M92: /
B93: Incertitude élargie (k=2) (mg) | G93: =IF(G83<>"/",2*G92,"/") -> 0.2001286336 | H93: 0.6397655821 | I93: 1.230853363 | J93: 1.833112108 | K93: 2.680774515 | L93: / | M93: /
B95: Phase 2 : Détermination de l’incertitude de l’instrument de pesage.
B96: Incertitude-type
B97: ORIGINE | C97: Composante | G97: Charges appliquées (g)
C98: Grandeur | E98: Source | F98: Loi de probabilité | G98: =IF(ISBLANK(F64),"/",F64) -> 0.1 | H98: 50 | I98: 100 | J98: 150 | K98: 220 | L98: / | M98: /
B99: Résultat de la pesé d'un corps | C99: Répétabilité des pesées de l'étalon de masse (g) | E99: Etalonnage | F99: Normale | G99: =IF(G83="/","/",IF(AND($C$49>0,G83<=$C$49,OR($D$49=0,G83<$D$49)),$C$60,IF(OR(ISBLANK($D$49),G83<=A57),$C$60,$D$60))) -> 8.164965809e-05 | H99: =IF(H83="/","/",IF(AND($C$49>0,H83<=$C$49,OR($D$49=0,H83<$D$49)),$C$60,IF(OR(ISBLANK($D$49),H83<=B49),$C$60,$D$60))) -> 8.164965809e-05 | I99: 8.164965809e-05 | J99: 8.164965809e-05 | K99: 8.164965809e-05 | L99: / | M99: /
C100: Résoution à vide (g) | E100: Indicateur numérique | F100: Normale k = 2 | G100: =IF(AND(G83<>"/",$J$31>0),$J$31/SQRT(6),"/") -> 4.082482905e-05 | H100: 4.082482905e-05 | I100: 4.082482905e-05 | J100: 4.082482905e-05 | K100: 4.082482905e-05 | L100: / | M100: /
C101: Résolution en charge (charge = étalon de masse) (g) | G101: =IF(AND(G83<=$J$30,G83<$K$30,G83<>"/"),$J$31/SQRT(6),IF(AND(G83>$J$30,G83<=$K$30,G83<>"/"),$K$31/SQRT(6),"/")) -> 4.082482905e-05 | H101: =IF(AND(H83<=$J$30,H83<$K$30,H83<>"/"),$J$31/SQRT(6),IF(AND(H83>$J$30,H83<=$K$30,H83<>"/"),$K$31/SQRT(6),"/")) -> 4.082482905e-05 | I101: 4.082482905e-05 | J101: 4.082482905e-05 | K101: 4.082482905e-05 | L101: / | M101: /
B102: Erreur d'indication | C102: Erreur d'indication non-corrigée (g) | E102: Calcul | F102: Normale ? | G102: =IF(G98<>"/",SQRT((G89*G89)+((F67/2)*(F67/2))),"/") -> 0.0001111985499 | H102: 0.0003493783765 | I102: 0.0006317089915 | J102: 0.0009167136958 | K102: 0.001346725009 | L102: / | M102: /
C103: Pérénité des erreurs (g) | E103: Calcul | F103: Uniforme | G103: =G102 -> 0.0001111985499 | H103: =H102 -> 0.0003493783765 | I103: =I102 -> 0.0006317089915 | J103: =J102 -> 0.0009167136958 | K103: =K102 -> 0.001346725009 | L103: =L102 -> / | M103: /
B104: Influence de la température (g) | E104: Données | F104: Rectengulaire | G104: =IF(ISBLANK($M$29),"Remplir C.",IF(G98<>"/",$M$29*$D$42/SQRT(3)*G98,"/")) -> 6.062177826e-06 | H104: =IF(ISBLANK($M$29),"Remplir C.",IF(H98<>"/",$M$29*$D$42/SQRT(3)*H98,"/")) -> 0.003031088913 | I104: 0.006062177826 | J104: 0.00909326674 | K104: 0.01333679122 | L104: / | M104: /
B105: Excentration de la charge (g) | E105: Etalonnage | F105: Triangulaire | G105: =IF(G98<>"/",$E$76,"/") -> 0.0002857738033 | H105: =IF(H98<>"/",$E$76,"/") -> 0.0002857738033 | I105: 0.0002857738033 | J105: 0.0002857738033 | K105: 0.0002857738033 | L105: / | M105: /
B106: Incertitude - type composée (g) | G106: =IF(G98<>"/",SQRT(G99*G99+G100*G100+G101*G101+G102*G102+G103*G103+G104*G104+G105*G105),"/") -> 0.000341223756 | H106: =IF(H98<>"/",SQRT(H99*H99+H100*H100+H101*H101+H102*H102+H103*H103+H104*H104+H105*H105),"/") -> 0.003085983987 | I106: 0.006135126663 | J106: 0.009190206454 | K106: =IF(K98<>"/",SQRT(K99*K99+K100*K100+K101*K101+K102*K102+K103*K103+K104*K104+K105*K105),"/") -> 0.0134754964 | L106: / | M106: /
B107: Incertitude élargie (k=2) (g) | G107: =IF(G98<>"/",2*G106,"/") -> 0.000682447512 | H107: =IF(H98<>"/",2*H106,"/") -> 0.006171967974 | I107: 0.01227025333 | J107: 0.01838041291 | K107: =IF(K98<>"/",2*K106,"/") -> 0.0269509928 | L107: / | M107: /
B109: Incertitude - type composée (mg) | G109: =IF(G98<>"/",G106*1000,"/") -> 0.341223756 | H109: =IF(H98<>"/",H106*1000,"/") -> 3.085983987 | I109: 6.135126663 | J109: 9.190206454 | K109: 13.4754964 | L109: / | M109: /
B110: Incertitude élargie (k=2) (mg) | G110: =IF(G98<>"/",2*G109,"/") -> 0.682447512 | H110: =IF(H98<>"/",2*H109,"/") -> 6.171967974 | I110: 12.27025333 | J110: 18.38041291 | K110: =IF(K98<>"/",2*K109,"/") -> 26.9509928 | L110: / | M110: /
B112: Remarques :
B118: =IF(AND(G99<>0,C17<>0),"Les résultats de ce présent "& C5 &" se rapportent uniquement à l'appareil "&C17&"."& CHAR(10) &"---- Fin du "&C5 &". ---- ","") -> Les résultats de ce présent Certificat d'étalonnage N°01-2023 se rapportent uniquement à l'appareil A12-BAL-0002. ---- Fin du Certificat d'étalonnage N°01-2023. ----

Sheet exploitation certificat
C2: ="Exploitation du "&'calcul '!S16&"." -> Exploitation du Certificat d'étalonnage N°01-2023.
B6: Appareil de pesage étalonné : | D6: ='calcul '!AB16 -> A12-BAL-0002
B7: Opérateur | D7: ='calcul '!AB17 -> 0
B8: Date d'étalonnage | D8: ='calcul '!AB18 -> 2023-12-08
B9: Date d'exploitation | D9: 2023-12-08
B13: Critère(s) vérifié(s):
B14: Linéarité (g): | E14: 2
B15: Répétabilité (g): | E15: 2
B16: % de la masse pesée : | E16: 2
B17: Début d'utilisation de l'appareil de pesage (g): | E17: 0.1
B18: Incertitude (g) : | E18: oui
B20: Linéarité : | C20: =IF(E14<>"/",E14,"Non pris en compte.") -> 2
B22: Masse pesée (g): | C22: =IF('calcul '!F64<>"/",'calcul '!F64,"/") -> 0.1 | D22: Masse relevées (g): | F22: =IF('calcul '!F66<>"/",'calcul '!F66,"/") -> 0.1001 | S22: Masse pesée (g): | T22: =IF('calcul '!F64<>"/",'calcul '!F64,#N/A) -> 0.1 | U22: Masse relevées (g): | W22: =IF('calcul '!F66<>"/",'calcul '!F66,#N/A) -> 0.1001
C23: =IF('calcul '!G64<>"/",'calcul '!G64,"/") -> 50 | F23: =IF('calcul '!G66<>"/",'calcul '!G66,"/") -> 50.0003 | T23: =IF('calcul '!G64<>"/",'calcul '!G64,#N/A) -> 50 | W23: =IF('calcul '!G66<>"/",'calcul '!G66,#N/A) -> 50.0003
C24: =IF('calcul '!H64<>"/",'calcul '!H64,"/") -> 100 | F24: =IF('calcul '!H66<>"/",'calcul '!H66,"/") -> 100.0003 | T24: =IF('calcul '!H64<>"/",'calcul '!H64,#N/A) -> 100 | W24: =IF('calcul '!H66<>"/",'calcul '!H66,#N/A) -> 100.0003
C25: =IF('calcul '!I64<>"/",'calcul '!I64,"/") -> 150 | F25: =IF('calcul '!I66<>"/",'calcul '!I66,"/") -> 150 | T25: =IF('calcul '!I64<>"/",'calcul '!I64,#N/A) -> 150 | W25: =IF('calcul '!I66<>"/",'calcul '!I66,#N/A) -> 150
C26: =IF('calcul '!J64<>"/",'calcul '!J64,"/") -> 220 | F26: =IF('calcul '!J66<>"/",'calcul '!J66,"/") -> 219.9998 | T26: =IF('calcul '!J64<>"/",'calcul '!J64,#N/A) -> 220 | W26: =IF('calcul '!J66<>"/",'calcul '!J66,#N/A) -> 219.9998
C27: =IF('calcul '!K64<>"/",'calcul '!K64,"/") -> / | F27: =IF('calcul '!K66<>"/",'calcul '!K66,"/") -> / | T27: =IF('calcul '!K64<>"/",'calcul '!K64,#N/A) ->  | W27: =IF('calcul '!K66<>"/",'calcul '!K66,#N/A) -> 
C28: =IF('calcul '!L64<>"/",'calcul '!L64,"/") -> / | F28: =IF('calcul '!L66<>"/",'calcul '!L66,"/") -> / | P28: =IF(OR(C28<>"/",F28<>"/"),LINEST(F22:F28,C22:C28,TRUE,FALSE),IF(OR(C27<>"/",F27<>"/"),LINEST(F22:F27,C22:C27,TRUE,FALSE),IF(OR(C26<>"/",F26<>"/"),LINEST(F22:F26,C22:C26,TRUE,FALSE),IF(OR(C25<>"/",F25<>"/"),LINEST(F22:F25,C22:C25,TRUE,FALSE),"erreur")))) -> 0.9999982593 | Q28: 0.0002810635973 | T28: =IF('calcul '!L64<>"/",'calcul '!L64,#N/A) ->  | W28: =IF('calcul '!L66<>"/",'calcul '!L66,#N/A) -> 
P29: =LINEST(F22:F26,C22:C26,TRUE,FALSE) -> 0.9999982593 | Q29: 0.0002810635973
B30: =_xlfn.CONCAT("y=",ROUND(P28,4),"*x",IF(Q28>0,"+",""),ROUND(Q28,4)) -> y=1*x+0,0003
B32: y=a*x+b
B33: linéarité = 1-a
B34: ="linéarité= " &ROUND(1-P28,5)&"(g)" -> linéarité= 0(g) | P34: marche bien mais pas trop pour notre cas
P35: ="linéarité= " &ROUND(1-P28,(LEN(_xlfn.TEXTAFTER(E14,","))+2))&"(g)" -> 
B36: Jugement : | C36: =IF(E14<>"/",IF(ABS(1-P28)<E14,"Conforme. (Comme |"&ROUND(1-P28,5)&"| < "&E14&")","Non-conforme. (Comme |"&ROUND(1-P28,5)&"| > "&E14&")"),"Non applicable") -> Conforme. (Comme |0| < 2)
B40: Répétabilité : | C40: =IF(E15<>"/",E15&" g","Non pris en compte.") -> 2 g
B42: =IF(AND('calcul '!C49<>0,E15<>"/"),"Répétabilité à "&'calcul '!C49& " g :","Non pris en compte.") -> Répétabilité à 100 g : | D42: =IF(E15<>"/",ROUND('calcul '!C60,4)&" g","") -> 0,0001 g | E42: =IF(B42<>"Non pris en compte.",IF(AND('calcul '!C60<>0,'calcul '!C60<E15),"Conforme .(Comme "&D42&" < "&E15&" g )","Non-conforme.(Comme"&D42&">"&E15&" g )"),"") -> Conforme .(Comme 0,0001 g < 2 g )
B43: =IF(AND('calcul '!D49<>0,E15<>"/"),"Répétabilité à "&'calcul '!D49& " g :","Non pris en compte.") -> Non pris en compte. | D43: =IF(AND(E15<>"/",B43<>"Non pris en compte."),ROUND('calcul '!D60,4)&" g","") ->  | E43: =IF(B43<>"Non pris en compte.",IF(AND('calcul '!C61<>0,'calcul '!C61<E15),"Conforme .(Comme "&D43&" < "&E15&" g )","Non-conforme .(Comme "&D43&" > "&E15&" g )"),"") -> 
S44: à vérifier lors d'un étalonnage d'un dilumat.
B47: Pourcent de la masse pesée : | D47: =IF(E16<>"/",E16& " %.","Non pris en compte.") -> 2 %.
B49: Masse pesée (g) : | D49: ='calcul '!F64 -> 0.1 | E49: ='calcul '!G64 -> 50 | F49: ='calcul '!H64 -> 100 | G49: ='calcul '!I64 -> 150 | H49: ='calcul '!J64 -> 220 | I49: ='calcul '!K64 -> / | J49: ='calcul '!L64 -> / | O49: droite reg | P49: =IF(OR('calcul '!M98<>"/",'calcul '!M107<>"/"),LINEST('calcul '!G107:M107,'calcul '!G98:M98,TRUE,FALSE),IF(OR('calcul '!L98<>"/",'calcul '!L107<>"/"),LINEST('calcul '!G107:L107,'calcul '!G98:L98,TRUE,FALSE),IF(OR('calcul '!K98<>"/",'calcul '!K107<>"/"),LINEST('calcul '!G107:K107,'calcul '!G98:K98,TRUE,FALSE),IF(OR('calcul '!J98<>"/",'calcul '!J107<>"/"),LINEST('calcul '!G107:J107,'calcul '!G98:J98,TRUE,FALSE),IF(OR('calcul '!I98<>"/",'calcul '!I107<>"/"),LINEST('calcul '!G107:I107,'calcul '!G98:I98,TRUE,FALSE),IF(OR('calcul '!H98<>"/",'calcul '!H107<>"/"),LINEST('calcul '!G107:H107,'calcul '!G98:H98,TRUE,FALSE),"Attention erreur quelque part.")))))) -> 0.0001200459567 | Q49: 0.0004040344824
B50: Incertitudeélargie (k=2) (g) : | D50: ='calcul '!G107 -> 0.000682447512 | E50: ='calcul '!H107 -> 0.006171967974 | F50: ='calcul '!I107 -> 0.01227025333 | G50: ='calcul '!J107 -> 0.01838041291 | H50: ='calcul '!K107 -> 0.0269509928 | I50: ='calcul '!L107 -> / | J50: ='calcul '!M107 -> / | O50: droite % | P50: =E16/100 -> 0.02 | Q50: 0 | S50: masse conforme (g): | U50: =IF(Q49>0,-Q49/(P49-P50),"Attention") -> 0.0203237131
P51: =U50 -> 0.0203237131 | S51: vérification | T51: masse | U51: =P50*U50 -> 0.000406474262 | V51: =ROUND(U51,5) -> 0.00041
T52: droite | U52: =P49*U50+Q49 -> 0.000406474262 | V52: =ROUND(U52,5) -> 0.00041 | W52: =IF(V51=V52,"C","NC") -> C
B53: ="La masse pesée (g) en fonction de l'incertitude (g) peut être modélisée par la courbe y = "&P53&" * x "&IF(Q49>0,"+","")&" "&ROUND(Q49,4)& " ." -> La masse pesée (g) en fonction de l'incertitude (g) peut être modélisée par la courbe y = 1,2005E-04 * x + 0,0004 . | P53: =TEXT(P49,"0,0000E+00;-0,0000E+00") -> 1,2005E-04 | S53: vérification arrondi+
T54: masse | U54: =P50*ROUNDUP(U50,0) -> 0.02 | V54: =IF(U54<U55,"NC","C") -> C
B55: =IF(E16<>"/",IF(P59="OK",IF(U50<E17,"Si on tolère "&E16&" % d'écart par rapport à la masse pesée, nous sommes conforme à "&E17&" g.",IF(U50>E17,"Si on tolère "&E16&" % d'écart par rapport à la masse pesée, nous ne sommes pas conforme à "&E17&" g.","")),P59)) -> Si on tolère 2 % d'écart par rapport à la masse pesée, nous sommes conforme à 0,1 g. | T55: droite | U55: =P49*ROUNDUP(U50,0)+Q49 -> 0.0005240804392
B56: =IF(E16<>"/","Nous sommes conforme à partir de "&ROUND(P51,3)&" g.","") -> Nous sommes conforme à partir de 0,02 g. | S56: vérification arrondi-
T57: masse | U57: =P50*ROUNDDOWN(U50,0) -> 0 | V57: =IF(U57<U58,"NC","C") -> NC
T58: droite | U58: =P49*ROUNDDOWN(U50,0)+Q49 -> 0.0004040344824
P59: =IF(AND(P49<P50,V54="C",V57="NC"),"OK","Exploiter l'étalonnage à part.") -> OK
P63: =Q63-0.0005 -> 0.0188237131 | Q63: =R63-0.0005 -> 0.0193237131 | R63: =S63-0.0005 -> 0.0198237131 | S63: =U50 -> 0.0203237131 | T63: =S63+0.0005 -> 0.0208237131 | U63: =T63+0.0005 -> 0.0213237131 | V63: 0.0218237131 | W63: 0.0223237131 | X63: 0.0228237131
P64: =P63*$P$49+$Q$49 -> 0.0004062941931 | Q64: =Q63*$P$49+$Q$49 -> 0.000406354216 | R64: 0.000406414239 | S64: 0.000406474262 | T64: 0.000406534285 | U64: 0.000406594308 | V64: 0.0004066543309 | W64: 0.0004067143539 | X64: 0.0004067743769
P65: =P63*$P$50 -> 0.000376474262 | Q65: =Q63*$P$50 -> 0.000386474262 | R65: 0.000396474262 | S65: 0.000406474262 | T65: 0.000416474262 | U65: 0.000426474262 | V65: 0.000436474262 | W65: 0.000446474262 | X65: 0.000456474262
P66: =MAX(P64:X65) -> 0.000456474262 | Q66: =MIN(P64:X65) -> 0.000376474262
P67: =P66-Q66 -> 8e-05
B77: Incertitude :
B79: Objectif :
B81: Masse (g) : | D81: 0.0005 | E81: 0.02 | F81: 0.2 | G81: 10 | H81: 1000 | I81: 2000 | J81: / | O81: u etalonnage | P81: =IF(J86<>"/",LINEST(D87:J87,D86:J86,TRUE,FALSE),IF(I86<>"/",LINEST(D87:I87,D86:I86,TRUE,FALSE),IF(H86<>"/",LINEST(D87:H87,D86:H86,TRUE,FALSE),IF(G86<>"/",LINEST(D87:G87,D86:G86,TRUE,FALSE),IF(F86<>"/",LINEST(D87:F87,D86:F86,TRUE,FALSE),IF(E86<>"/",LINEST(D87:E87,D86:E86,TRUE,FALSE),"erreur")))))) -> 0.1200459567 | Q81: 0.4040344824 | R81: Masse g | S81: =IF(D81<>"/",D81,#N/A) -> 0.0005 | T81: 0.02 | U81: 0.2 | V81: 10 | W81: 1000 | X81: 2000
B82: Incertitude (g) : | D82: 0.06 | E82: 0.05 | F82: 0.4 | G82: 0.4 | H82: 4 | I82: 40 | J82: / | R82: Incertitude g | S82: 0.06 | T82: 0.05 | U82: 0.4 | V82: 0.4 | W82: 4 | X82: 40
B84: Résiltats :
O85: u norme | P85: =IF(J81<>"/",LINEST(D82:J82,D81:J81,TRUE,FALSE),IF(I81<>"/",LINEST(D82:I82,D81:I81,TRUE,FALSE),IF(H81<>"/",LINEST(D82:H82,D81:H81,TRUE,FALSE),IF(G81<>"/",LINEST(D82:G82,D81:G81,TRUE,FALSE),IF(F81<>"/",LINEST(D82:F82,D81:F81,TRUE,FALSE),IF(E81<>"/",LINEST(D82:E82,D81:E81,TRUE,FALSE),"erreur")))))) -> 0.01761461579 | Q85: -1.352312925
B86: Masse (g) : | D86: ='calcul '!G98 -> 0.1 | E86: ='calcul '!H98 -> 50 | F86: ='calcul '!I98 -> 100 | G86: ='calcul '!J98 -> 150 | H86: ='calcul '!K98 -> 220 | I86: ='calcul '!L98 -> / | J86: ='calcul '!M98 -> / | R86: Masse pesée g | S86: =IF(D86<>"/",D86,#N/A) -> 0.1 | T86: 50 | U86: 100 | V86: 150 | W86: 220
B87: Incertitude élargie (g) : | D87: ='calcul '!G110 -> 0.682447512 | E87: ='calcul '!H110 -> 6.171967974 | F87: ='calcul '!I110 -> 12.27025333 | G87: ='calcul '!J110 -> 18.38041291 | H87: ='calcul '!K110 -> 26.9509928 | I87: ='calcul '!L110 -> / | J87: ='calcul '!M110 -> / | P87: =IF(P81>0,"positif","négatif") -> positif | R87: U (k = 2) mg | S87: 0.682447512 | T87: 6.171967974 | U87: 12.27025333 | V87: 18.38041291 | W87: 26.9509928
B89: Exploitation :
B91: Masse (g) : | D91: ='calcul '!G98 -> 0.1 | E91: ='calcul '!H98 -> 50 | F91: ='calcul '!I98 -> 100 | G91: ='calcul '!J98 -> 150 | H91: ='calcul '!K98 -> 220 | I91: ='calcul '!L98 -> / | J91: ='calcul '!M98 -> / | R91: Masse pesée g | S91: =IF(D91<>"/",D91,#N/A) -> 0.1 | T91: 50 | U91: 100 | V91: 150 | W91: 220
B92: Incertitude cible (g) : | D92: =IF(AND(D86<$E$81,D86>=$D$81),$D$82,IF(AND(D86<$F$81,D86>=$E$81),$E$82,IF(AND(D86<$G$81,D86>=$F$81),$F$82,IF(AND(D86<$H$81,D86>=$G$81),$G$82,IF(AND(D86<$I$81,D86>=$H$81),$H$82,IF(AND(D86<$J$81,D86>=$I$81),$I$82,IF(AND(D86<$K$81,D86>=$J$81),$J$82,"/"))))))) -> 0.05 | E92: 0.4 | F92: 0.4 | G92: 0.4 | H92: 0.4 | I92: / | J92: / | R92: tolérence | S92: 0.05 | T92: 0.4 | U92: 0.4 | V92: 0.4 | W92: 0.4
B93: Conformité à l'incertitude cible : | D93: =IF(OR(D92<>"/",D87<>"/"),IF(D87<D92,"Conforme","Non conforme"),"/") -> Non conforme | E93: =IF(OR(E92<>"/",E87<>"/"),IF(E87<E92,"Conforme","Non conforme"),"/") -> Non conforme | F93: Non conforme | G93: Non conforme | H93: Non conforme | I93: / | J93: /
